{"text_format":"1","workbook":"xlsx","n_sheets":8,"sheets":["GUIDE D'UTILISATION","MAQUETTE VIERGE","ANNEXE FINANCIERE","MUTUALISATIONS","extraction base OF","liste automatisée mentions","liste automatisée parcours","LISTES"],"not_rendered":{"charts":0,"images":3,"macros":1,"external_links":1,"defined_names":9,"comments":0,"pivot_tables":0},"unopened":[],"bounds":{"document_bytes":16777216,"sheet_cells":100000,"rows_first":2000,"rows_last":500,"rows_between":2000,"halvings":0,"cell_chars":16384,"cell_head_chars":4096},"cells_cut":0,"cells_raw":0,"read":"whole","date_system":"1900"}

{"sheet":"GUIDE D'UTILISATION","index":0,"n_rows":131,"n_cols":6,"rows_kept":131,"cut":false,"hidden":false,"merged":[[7,5,7,19],[7,27,7,31],[26,14,26,20],[73,1,76,11],[130,1,133,11]]}
[]
[]
[]
[]
[null,"DFIP / AFAF"]
[]
[]
[null,null,null,null,null,"\nELABORATION D'UNE MAQUETTE PEDAGOGIQUE"]
[]
[]
[]
[]
[]
[]
[]
[]
[]
[]
[]
[]
[]
[]
[]
[]
[]
[]
[]
[]
[]
[]
[]
[]
[]
[]
[]
[]
[]
[]
[]
[]
[]
[]
[]
[]
[]
[]
[]
[]
[]
[]
[]
[]
[]
[]
[]
[]
[]
[]
[]
[]
[]
[]
[]
[]
[]
[]
[]
[]
[]
[]
[]
[]
[]
[null,"1. SAISIE DES MODALITES PEDAGOGIQUES"]
[]
[]
[]
[]
[]
[]
[]
[]
[]
[]
[]
[]
[]
[]
[]
[]
[]
[]
[]
[]
[]
[]
[]
[]
[]
[]
[]
[]
[]
[]
[]
[]
[]
[]
[]
[]
[]
[]
[]
[]
[]
[]
[]
[]
[]
[]
[]
[]
[]
[]
[]
[]
[]
[]
[]
[]
[null,"2. SAISIE DES MODALITES DE CONTRÔLE DES CONNAISSANCES ET DES COMPETENCES"]

{"sheet":"MAQUETTE VIERGE","index":1,"n_rows":228,"n_cols":35,"rows_kept":228,"cut":false,"hidden":false,"merged":[[189,29,189,34],[190,21,191,21],[190,22,190,26],[190,27,191,27],[190,28,191,28],[190,29,190,33],[190,34,191,34],[187,0,187,15],[188,0,188,2],[188,3,188,5],[188,6,188,8],[188,9,191,9],[188,10,189,15],[189,0,191,0],[189,1,191,1],[189,2,191,2],[189,3,191,3],[189,4,191,4],[189,5,191,5],[189,6,191,6],[189,7,191,7],[189,8,191,8],[190,10,190,15],[190,16,190,20],[68,35,68,39],[105,0,119,34],[126,16,126,34],[127,16,127,34],[128,16,128,28],[128,29,128,34],[129,21,130,21],[129,22,129,26],[129,27,130,27],[129,28,130,28],[129,29,129,33],[129,34,130,34],[129,35,129,39],[127,0,127,2],[127,3,127,5],[127,6,127,8],[127,9,130,9],[127,10,128,15],[128,0,130,0],[128,1,130,1],[128,2,130,2],[128,3,130,3],[128,4,130,4],[128,5,130,5],[67,8,69,8],[67,3,69,3],[67,4,69,4],[67,5,69,5],[67,6,69,6],[67,7,69,7],[66,9,69,9],[66,10,67,15],[66,3,66,5],[66,6,66,8],[189,16,189,28],[4,16,4,34],[5,16,5,34],[6,16,6,28],[6,29,6,34],[7,21,8,21],[7,22,7,26],[7,27,8,27],[7,28,8,28],[7,29,7,33],[7,34,8,34],[68,22,68,26],[68,27,69,27],[68,28,69,28],[129,16,129,20],[239,35,239,39],[178,35,178,39],[222,0,223,0],[222,1,223,1],[222,2,223,2],[222,3,223,3],[222,4,223,4],[222,5,223,5],[222,6,223,6],[222,7,223,7],[222,8,223,8],[222,9,223,9],[222,10,223,10],[222,11,223,11],[222,12,223,12],[222,13,223,13],[222,14,223,14],[222,15,223,15],[190,35,190,39],[227,0,241,34],[166,0,180,34],[187,16,187,34],[188,16,188,34],[39,1,40,1],[39,2,40,2],[117,35,117,39],[161,0,162,0],[161,1,162,1],[161,2,162,2],[161,3,162,3],[161,4,162,4],[161,5,162,5],[161,6,162,6],[161,7,162,7],[161,8,162,8],[161,9,162,9],[161,10,162,10],[161,11,162,11],[161,12,162,12],[161,13,162,13],[161,14,162,14],[161,15,162,15],[126,0,126,15],[128,6,130,6],[128,7,130,7],[128,8,130,8],[129,10,129,15],[56,35,56,39],[100,0,101,0],[100,1,101,1],[100,2,101,2],[100,3,101,3],[100,4,101,4],[100,5,101,5],[100,6,101,6],[100,7,101,7],[100,8,101,8],[100,9,101,9],[100,10,101,10],[100,11,101,11],[100,12,101,12],[100,13,101,13],[100,14,101,14],[100,15,101,15],[67,2,69,2],[68,10,68,15],[68,16,68,20],[67,0,69,0],[67,1,69,1],[68,29,68,33],[68,34,69,34],[44,0,58,34],[65,16,65,34],[66,16,66,34],[67,16,67,28],[67,29,67,34],[68,21,69,21],[5,6,5,8],[5,9,8,9],[5,10,6,15],[6,0,8,0],[6,1,8,1],[6,2,8,2],[65,0,65,15],[5,0,5,2],[5,3,5,5],[39,3,40,3],[39,4,40,4],[39,5,40,5],[39,6,40,6],[39,7,40,7],[39,8,40,8],[66,0,66,2],[39,15,40,15],[39,0,40,0],[4,0,4,15],[38,10,38,11],[160,10,160,11],[221,10,221,11],[7,35,7,39],[39,9,40,9],[39,10,40,10],[39,11,40,11],[39,12,40,12],[6,3,8,3],[6,4,8,4],[6,5,8,5],[6,6,8,6],[6,7,8,7],[6,8,8,8],[7,10,7,15],[7,16,7,20],[39,13,40,13],[39,14,40,14]]}
[]
["MASTER formes et outils de l’enquête en sciences sociales",null,"version du 26 aout 2022"]
["Semestre 7"]
[]
["MAQUETTE",null,null,null,null,null,null,null,null,null,null,null,null,null,null,null,"MCCC"]
["Blocs de connaissances et de compétences (BCC)",null,null,"Unités d'Enseignement (UE)",null,null,"Eléments constitutifs d'UE (ECUE)",null,null,"Indiquer si l'UE ou l'ECUE est\n obligatoire, optionnel ou facultatif\n(menu déroulant)","Volumes horaires prévisionnels (temps étudiants)",null,null,null,null,null,"Poids relatifs du contrôle continu (CC et des examens de fin de semestre (CT), Nature des épreuves, Rattrapage"]
["Intitulés","Crédits","Coefficients","Intitulés","Crédits","Coefficients","Intitulés","Crédits","Coefficients",null,null,null,null,null,null,null,"Session principale ou session 1",null,null,null,null,null,null,null,null,null,null,null,null,"Rattrapage ou session 2"]
[null,null,null,null,null,null,null,null,null,null,"Enseignements",null,null,null,null,null,"Nature des épreuves CC (cocher)",null,null,null,null,"CC\nCoeff. (%)","Nature des épreuves CT (cocher)",null,null,null,null,"CT\nCoeff. (%)","Total session = 100 %","Nature des épreuves de rattrapage (cocher)",null,null,null,null,"Modalité de prise en compte\n\nObligatoire ou Facultatif"]
[null,null,null,null,null,null,null,null,null,null,"CM","TD","TP","Stage-Choisir la durée ici","PROJET","dont enseignements en langue étrangère \n(nombre d'heures)","Ecrit","Pratique (TP)","Oral","Mémoire","Soutenance",null,"Ecrit","Pratique (TP)","Oral","Mémoire","Soutenance",null,null,"Ecrit","Pratique (TP)","Oral","Mémoire","Soutenance"]
["RNCP31499BC02 Développement et intégration de savoirs hautement spécialisés",6,2,"UE1- Cours fondamentaux",6,2,null,null,null,null,null,null,null,null,null,null,null,null,null,null,null,null,null,null,null,null,null,null,{"$f":"V10+AB10","v":0},null,null,null,null,null,"Choisir dans la liste"]
["Maîtriser un raisonnement sociologique et une prise de distance par rapport au sens commun et identifier et utiliser les connaissances et problématiques de la discipline",3,1,null,null,null,"Inégalités et changement social",3,1,"obligatoire",21,null,null,null,null,null,null,null,null,null,null,null,"x",null,null,null,null,1,{"$f":"V11+AB11","v":1},"x",null,null,null,null,"Obligatoire"]
["Maîtriser de manière critique les nouvelles approches de la sociologie",3,1,null,null,null,"Enquêtes sociologiques et intervention ",3,1,"obligatoire",21,null,null,null,null,null,null,null,null,null,null,null,"x",null,null,null,null,1,1,"x",null,null,null,null,"Obligatoire"]
["RNCP31499BC02 Développement et intégration de savoirs hautement spécialisés .  RNCP34132BC03  : Maîtriser les outils de l’enquête de terrain",12,2,"UE2 Initiation à la recherche",12,2,null,null,null,null,null,null,null,null,null,null,null,null,null,null,null,null,null,null,null,null,null,null,0,null,null,null,null,null,"Choisir dans la liste"]
["Construire des questionnements sociologiques à partir d'un sujet, de faits d'observation ; explorer différentes dimensions dans les champs de l'intervention sociale",6,1,null,null,null,"Séminaire Recherche & Action",6,1,"obligatoire",null,21,null,null,null,null,"x",null,null,null,null,1,null,null,null,null,null,null,1,"x",null,null,null,null,"Obligatoire"]
["Construire des questionnements sociologiques à partir d'un sujet, de faits d'observation, explorer différentes dimensions de la recherche dans les champs de l'enquête sociale et de la lutte contre les discrimination ",6,1,null,null,null,"Séminaire Lutte contre les discriminations",6,1,"obligatoire",null,21,null,null,null,null,"x",null,null,null,null,1,null,null,null,null,null,null,1,"x",null,null,null,null,"Obligatoire"]
["Communiquer sur la recherche et transferts de connaissances",0,0,null,null,null,"Exposer la recherche",0,0,"facultatif",null,12,null,null,null,null,"x",null,null,null,null,1,null,null,null,null,null,null,1,"x",null,null,null,null,"Obligatoire"]
["RNCP31499BC02 Développement et intégration de savoirs hautement spécialisés RNCP31499BC01 Usages avancés et spécialisés des outils numériques",6,2,"UE3 Ateliers de méthode et outils de l'enquête",6,2,null,null,null,null,null,null,null,null,null,null,null,null,null,null,null,null,null,null,null,null,null,null,{"$f":"V14+AB17","v":1},null,null,null,null,null,"Choisir dans la liste"]
["Maîtiser les outils de l'ethnographie et de l'analyse quantitative",3,1,null,null,null,"Statistiques ethnographiques",3,1,"obligatoire",null,21,null,null,15,null,"x",null,null,null,null,1,null,null,null,null,null,null,1,"x",null,null,null,null,"Obligatoire"]
["Maîtriser les outils de l'ethnographie et de l'analyse qualitative",3,1,null,null,null,"Ethnographie : immersion et description",3,1,"optionnel",null,21,null,null,15,null,"x",null,null,null,null,1,null,null,null,null,null,null,1,"x",null,null,null,null,"Obligatoire"]
["Maîtiser des outils de l'enquête numérique et de la sociologie visuelle",3,1,null,null,null,"Enquête numérique et images animées",3,1,"optionnel",null,21,null,null,15,null,"x",null,null,null,null,1,null,null,null,null,null,null,1,"x",null,null,null,null,"Obligatoire"]
["RNCP31499BC02 Développement et intégration de savoirs hautement spécialisés RNCP34132BC01 Appui à la transformation en contexte professionnel",3,2,"UE4 Enseignements ciblés ",3,2,null,null,null,null,null,null,null,null,null,null,null,null,null,null,null,null,null,null,null,null,null,null,0,null,null,null,null,null,"Choisir dans la liste"]
["Identifier des compétences et des savoirs en rapport avec un projet professionnel",1,1,null,null,null,"Atelier insertion professionnelle",1,1,"obligatoire",null,9,null,null,null,null,"x",null,null,null,null,1,null,null,null,null,null,null,1,"x",null,null,null,null,"Obligatoire"]
["Développer une conscience critique des savoirs en rapport avec une connaissance de l'environnement professionnel",2,1,null,null,null,"Approche des organisations",2,1,"obligatoire",null,12,null,null,null,null,"x",null,null,null,null,1,null,null,null,null,null,null,1,"x",null,null,null,null,"Obligatoire"]
["RNCP31499BC03 Communication spécialisée pour le transfert de connaissances",3,1,"UE5 Langue",3,1,null,null,null,null,null,null,null,null,null,null,null,null,null,null,null,null,null,null,null,null,null,null,0,"x",null,null,null,null,"Obligatoire"]
["Maîtriser une langue étrangère : lire et communiquer en Anglais en lien avec la littérature sociologique",3,1,null,null,null,"Anglais pour sociologues",3,1,"obligatoire",null,21,null,null,null,null,"x",null,"x",null,null,1,null,null,null,null,null,null,1,"x",null,"x",null,null,"Obligatoire"]
[null,null,null,null,null,null,null,null,null,"choisir dans la liste",null,null,null,null,null,null,null,null,null,null,null,null,null,null,null,null,null,null,0,null,null,null,null,null,"Choisir dans la liste"]
[null,null,null,null,null,null,null,null,null,"choisir dans la liste",null,null,null,null,null,null,null,null,null,null,null,null,null,null,null,null,null,null,0,null,null,null,null,null,"Choisir dans la liste"]
[null,null,null,null,null,null,null,null,null,"choisir dans la liste",null,null,null,null,null,null,null,null,null,null,null,null,null,null,null,null,null,null,0,null,null,null,null,null,"Choisir dans la liste"]
[null,null,null,null,null,null,null,null,null,"choisir dans la liste",null,null,null,null,null,null,null,null,null,null,null,null,null,null,null,null,null,null,0,null,null,null,null,null,"Choisir dans la liste"]
[null,null,null,null,null,null,null,null,null,"choisir dans la liste",null,null,null,null,null,null,null,null,null,null,null,null,null,null,null,null,null,null,0,null,null,null,null,null,"Choisir dans la liste"]
[null,null,null,null,null,null,null,null,null,"choisir dans la liste",null,null,null,null,null,null,null,null,null,null,null,null,null,null,null,null,null,null,0,null,null,null,null,null,"Choisir dans la liste"]
[null,null,null,null,null,null,null,null,null,"choisir dans la liste",null,null,null,null,null,null,null,null,null,null,null,null,null,null,null,null,null,null,0,null,null,null,null,null,"Choisir dans la liste"]
[null,null,null,null,null,null,null,null,null,"choisir dans la liste",null,null,null,null,null,null,null,null,null,null,null,null,null,null,null,null,null,null,0,null,null,null,null,null,"Choisir dans la liste"]
[null,null,null,null,null,null,null,null,null,"choisir dans la liste",null,null,null,null,null,null,null,null,null,null,null,null,null,null,null,null,null,null,0,null,null,null,null,null,"Choisir dans la liste"]
[null,null,null,null,null,null,null,null,null,"choisir dans la liste",null,null,null,null,null,null,null,null,null,null,null,null,null,null,null,null,null,null,0,null,null,null,null,null,"Choisir dans la liste"]
[null,null,null,null,null,null,null,null,null,"choisir dans la liste",null,null,null,null,null,null,null,null,null,null,null,null,null,null,null,null,null,null,0,null,null,null,null,null,"Choisir dans la liste"]
[null,null,null,null,null,null,null,null,null,"choisir dans la liste",null,null,null,null,null,null,null,null,null,null,null,null,null,null,null,null,null,null,0,null,null,null,null,null,"Choisir dans la liste"]
[null,null,null,null,null,null,null,null,null,"choisir dans la liste",null,null,null,null,null,null,null,null,null,null,null,null,null,null,null,null,null,null,0,null,null,null,null,null,"Choisir dans la liste"]
[null,null,null,null,null,null,null,null,null,"choisir dans la liste",168,null,null,null,30,null,null,null,null,null,null,null,null,null,null,null,null,null,0,null,null,null,null,null,"Choisir dans la liste"]
["Total par étudiant",null,"-","-",null,"-","-",null,"-","-"]
[]
[]
[]
[]
["ZONE DE TEXTE / COMMENTAIRES : (ALT+ENTREE pour aller à la ligne)\n\n"]
[]
[]
[]
[]
[]
[]
[]
[]
[]
[]
[]
[]
[]
[]
[]
[]
[]
[]
["Semestre 8"]
[]
["MAQUETTE",null,null,null,null,null,null,null,null,null,null,null,null,null,null,null,"MCCC"]
["Blocs de connaissances et de compétences (BCC)",null,null,"Unités d'Enseignement (UE)",null,null,"Eléments constitutifs d'UE (ECUE)",null,null,"Indiquer si l'UE ou l'ECUE est\n obligatoire, optionnel ou facultatif\n(menu déroulant)","Volumes horaires prévisionnels (temps étudiants)",null,null,null,null,null,"Poids relatifs du contrôle continu (CC et des examens de fin de semestre (CT), Nature des épreuves, Rattrapage"]
["Intitulés","Crédits","Coefficients","Intitulés","Crédits","Coefficients","Intitulés","Crédits","Coefficients",null,null,null,null,null,null,null,"Session principale ou session 1",null,null,null,null,null,null,null,null,null,null,null,null,"Rattrapage ou session 2"]
[null,null,null,null,null,null,null,null,null,null,"Enseignements",null,null,null,null,null,"Nature des épreuves CC (cocher)",null,null,null,null,"CC\nCoeff. (%)","Nature des épreuves CT (cocher)",null,null,null,null,"CC\nCoeff. (%)","Total session = 100 %","Nature des épreuves de rattrapage (cocher)",null,null,null,null,"Modalité de prise en compte\n\nObligatoire ou Facultatif"]
[null,null,null,null,null,null,null,null,null,null,"CM","TD","TP","Stage-Choisir la durée ici","PROJET","dont enseignements en langue étrangère \n(nombre d'heures)","Ecrit","Pratique (TP)","Oral","Mémoire","Soutenance",null,"Ecrit","Pratique (TP)","Oral","Mémoire","Soutenance",null,null,"Ecrit","Pratique (TP)","Oral","Mémoire","Soutenance"]
["RNCP31499BC02 Développement et intégration de savoirs hautement spécialisés",3,2,"UE1- Cours fondamentaux",3,null,null,null,null,null,null,null,null,null,null,null,null,null,null,null,null,null,null,null,null,null,null,null,{"$f":"V71+AB71","v":0},null,null,null,null,null,"Choisir dans la liste"]
["Maitriser un raisonnement sociologique et une prise de distance par rapport au sens commun, identifier et utiliser les connaissances et problématiques de la discipline",1.5,1,null,null,1,"Construction des problèmes publics ",null,1,"obligatoire",21,null,null,null,null,null,null,null,null,null,null,null,"x",null,null,null,null,1,{"$f":"V72+AB72","v":1},"x",null,null,null,null,"Obligatoire"]
["S'approprier une réflexion théorique et repérer les partiques et usages sociaux de l'enquête   ",1.5,1,null,null,1,"Formes et régimes de l'enquête ",null,1,"obligatoire",21,null,null,null,null,null,null,null,null,null,null,null,"x",null,null,null,null,1,1,"x",null,null,null,null,"Obligatoire"]
["RNCP31499BC02 Développement et intégration de savoirs hautement spécialisés .  RNCP34132BC03  : Maîtriser les outils de l’enquête de terrain",15,2,"UE2 - Pratique de la recherche ",15,2,null,null,null,null,null,null,null,null,null,null,null,null,null,null,null,null,null,null,null,null,null,null,0,null,null,null,null,null,"Choisir dans la liste"]
["Construire des questionnements sociologiques à partir d'un sujet, de faits d'observation",3,1,null,null,null,"Séminaire Recherche  ",3,1,"obligatoire",null,15,null,null,null,null,"x",null,null,null,null,1,null,null,null,null,null,null,1,"X",null,null,null,null,"Obligatoire"]
["Elaboration, recueil et analyse de données, écriture d'un mémoire, valorisation d'un travail de recherche sociologique",12,1,null,null,null,"Mémoire et suivi de terrain",12,1,"obligatoire",null,16,null,null,null,null,null,null,null,"x","x",1,null,null,null,null,null,null,1,null,null,null,"x","x","Obligatoire"]
["RNCP31499BC02 Développement et intégration de savoirs hautement spécialisés RNCP31499BC01 Usages avancés et spécialisés des outils numériques",6,2,"UE3- Ateliers de méthode et outils de l'enquête",6,2,null,null,null,null,null,null,null,null,null,null,null,null,null,null,null,null,null,null,null,null,null,null,0,null,null,null,null,null,"Choisir dans la liste"]
["Maîtiser les outils de l'ethnographie et de l'analyse quantitative",3,1,null,null,null,"Statistiques ethnographiques",3,1,"obligatoire",null,21,null,null,15,null,"x",null,null,null,null,1,null,null,null,null,null,null,1,"x",null,null,null,null,"Obligatoire"]
["Maîtriser les outils du diagnostique et de l'évaluation",3,1,null,null,null,"Outils du diagnostique et de l'évaluation",3,1,"optionnel",null,21,null,null,15,null,"x",null,null,null,null,1,null,null,null,null,null,null,1,"x",null,null,null,null,"Obligatoire"]
["Maîtriser les outils de la cartographie et de l'image.",3,1,null,null,null,"Cartographie et images.",3,1,"optionnel",null,21,null,null,15,null,"x",null,null,null,null,1,null,null,null,null,null,null,1,"x",null,null,null,null,"Obligatoire"]
["RNCP31499BC02 Développement et intégration de savoirs hautement spécialisés RNCP31499BC04 Appui à la transformation en contexte professionnel",3,4,"UE4 - Enseignements ciblés",3,4,null,null,null,null,null,null,null,null,null,null,null,null,null,null,null,null,null,null,null,null,null,null,0,null,null,null,null,null,"Choisir dans la liste"]
["Identifier les problématiques, les enjeux, les acteurs et les modes opératoires de l'action publique",1,1,null,null,null,"Fonctionnement des institutions*",1,1,"obligatoire",9,12,null,null,null,null,"x",null,null,null,null,1,null,null,null,null,null,null,1,null,null,null,null,null,"Obligatoire"]
["Analyser ses actions dans une situation professionnelle, s'autoévaluer pour améliorer sa pratique",2,3,null,null,null,"Stage",2,3,"obligatoire",null,null,null,150,"2h/etudiant",null,null,null,"x",null,null,0.5,null,null,"x",null,null,0.5,1,null,null,null,null,null,"Obligatoire"]
["RNCP31499BC03 Communication spécialisée pour le transfert de connaissances",3,1,"UE5 Langue",3,1,null,null,null,null,null,null,null,null,null,null,null,null,null,null,null,null,null,null,null,null,null,null,0,null,null,null,null,null,"Choisir dans la liste"]
["Maîtriser une langue étrangère : lire et communiquer en Anglais en lien avec la littérature sociologique",3,1,null,null,null,"Anglais pour sociologues",3,1,"obligatoire",null,21,null,null,null,null,"x",null,"x",null,null,1,null,null,null,null,null,null,1,"x",null,"x",null,null,"Obligatoire"]
[null,null,null,null,null,null,null,null,null,"choisir dans la liste",null,null,null,null,null,null,null,null,null,null,null,null,null,null,null,null,null,null,0,null,null,null,null,null,"Choisir dans la liste"]
[null,null,null,null,null,null,null,null,null,"choisir dans la liste",null,null,null,null,null,null,null,null,null,null,null,null,null,null,null,null,null,null,0,null,null,null,null,null,"Choisir dans la liste"]
[null,null,null,null,null,null,null,null,null,"choisir dans la liste",null,null,null,null,null,null,null,null,null,null,null,null,null,null,null,null,null,null,0,null,null,null,null,null,"Choisir dans la liste"]
[null,null,null,null,null,null,null,null,null,"choisir dans la liste",null,null,null,null,null,null,null,null,null,null,null,null,null,null,null,null,null,null,0,null,null,null,null,null,"Choisir dans la liste"]
[null,null,null,null,null,null,null,null,null,"choisir dans la liste",null,null,null,null,null,null,null,null,null,null,null,null,null,null,null,null,null,null,0,null,null,null,null,null,"Choisir dans la liste"]
[null,null,null,null,null,null,null,null,null,"choisir dans la liste",null,null,null,null,null,null,null,null,null,null,null,null,null,null,null,null,null,null,0,null,null,null,null,null,"Choisir dans la liste"]
[null,null,null,null,null,null,null,null,null,"choisir dans la liste",null,null,null,null,null,null,null,null,null,null,null,null,null,null,null,null,null,null,0,null,null,null,null,null,"Choisir dans la liste"]
[null,null,null,null,null,null,null,null,null,"choisir dans la liste",null,null,null,null,null,null,null,null,null,null,null,null,null,null,null,null,null,null,0,null,null,null,null,null,"Choisir dans la liste"]
[null,null,null,null,null,null,null,null,null,"choisir dans la liste",null,null,null,null,null,null,null,null,null,null,null,null,null,null,null,null,null,null,0,null,null,null,null,null,"Choisir dans la liste"]
[null,null,null,null,null,null,null,null,null,"choisir dans la liste",null,null,null,null,null,null,null,null,null,null,null,null,null,null,null,null,null,null,0,null,null,null,null,null,"Choisir dans la liste"]
[null,null,null,null,null,null,null,null,null,"choisir dans la liste",null,null,null,null,null,null,null,null,null,null,null,null,null,null,null,null,null,null,0,null,null,null,null,null,"Choisir dans la liste"]
[null,null,null,null,null,null,null,null,null,"choisir dans la liste",null,null,null,null,null,null,null,null,null,null,null,null,null,null,null,null,null,null,0,null,null,null,null,null,"Choisir dans la liste"]
[null,null,null,null,null,null,null,null,null,"choisir dans la liste",null,null,null,null,null,null,null,null,null,null,null,null,null,null,null,null,null,null,0,null,null,null,null,null,"Choisir dans la liste"]
[null,null,null,null,null,null,null,null,null,"choisir dans la liste",null,null,null,null,null,null,null,null,null,null,null,null,null,null,null,null,null,null,0,null,null,null,null,null,"Choisir dans la liste"]
[null,null,null,null,null,null,null,null,null,"choisir dans la liste",null,null,null,null,null,null,null,null,null,null,null,null,null,null,null,null,null,null,0,null,null,null,null,null,"Choisir dans la liste"]
["Total par étudiant",null,"-","-",null,"-","-",null,"-","-"]
[]
[]
[]
[]
["ZONE DE TEXTE / COMMENTAIRES : (ALT+ENTREE pour aller à la ligne)\n\n* invités"]
[]
[]
[]
[]
[]
[]
[]
[]
[]
[]
[]
[]
[]
[]
[]
[]
[]
[]
["Semestre 9"]
[]
["MAQUETTE",null,null,null,null,null,null,null,null,null,null,null,null,null,null,null,"MCCC"]
["Blocs de connaissances et de compétences (BCC)",null,null,"Unités d'Enseignement (UE)",null,null,"Eléments constitutifs d'UE (ECUE)",null,null,"Indiquer si l'UE ou l'ECUE est\n obligatoire, optionnel ou facultatif\n(menu déroulant)","Volumes horaires prévisionnels (temps étudiants)",null,null,null,null,null,"Poids relatifs du contrôle continu (CC et des examens de fin de semestre (CT), Nature des épreuves, Rattrapage"]
["Intitulés","Crédits","Coefficients","Intitulés","Crédits","Coefficients","Intitulés","Crédits","Coefficients",null,null,null,null,null,null,null,"Session principale ou session 1",null,null,null,null,null,null,null,null,null,null,null,null,"Rattrapage ou session 2"]
[null,null,null,null,null,null,null,null,null,null,"Enseignements",null,null,null,null,null,"Nature des épreuves CC (cocher)",null,null,null,null,"CC\nCoeff. (%)","Nature des épreuves CT (cocher)",null,null,null,null,"CC\nCoeff. (%)","Total session = 100 %","Nature des épreuves de rattrapage (cocher)",null,null,null,null,"Modalité de prise en compte\n\nObligatoire ou Facultatif"]
[null,null,null,null,null,null,null,null,null,null,"CM","TD","TP","Stage-Choisir la durée ici","PROJET","dont enseignements en langue étrangère \n(nombre d'heures)","Ecrit","Pratique (TP)","Oral","Mémoire","Soutenance",null,"Ecrit","Pratique (TP)","Oral","Mémoire","Soutenance",null,null,"Ecrit","Pratique (TP)","Oral","Mémoire","Soutenance"]
["RNCP31499BC02 Développement et intégration de savoirs hautement spécialisés ",6,2,"UE1 : Théories de l’enquête (cours fondamentaux)",6,2,null,null,null,null,null,null,null,null,null,null,null,null,null,null,null,null,null,null,null,null,null,null,{"$f":"V132+AB132","v":0},null,null,null,null,null,"Choisir dans la liste"]
["S'approprier une réflexion théorique et développer une conscience critique des savoirs en lien avec des problématiques sociologiques",3,1,null,null,null,"Étudier les inégalités sociales  ",3,1,"obligatoire",21,null,null,null,null,null,null,null,null,null,null,null,"x",null,null,null,null,null,1,"x",null,null,null,null,"Obligatoire"]
["Comprendre les enjeux éthiques et politiques de l'enquête en vue de réaliser une recherche autonome",3,1,null,null,null,"Droit de l’enquête : éthique et politique de la donnée ",3,1,"obligatoire",6,10,null,null,null,null,null,"x",null,null,null,1,null,null,null,null,null,null,{"$f":"V136+AB134","v":1},null,"x",null,null,null,"Obligatoire"]
["RNCP31499BC02 Développement et intégration de savoirs hautement spécialisés ",10,3,"UE2 : Approndissement par la recherche",10,3,null,null,null,null,null,null,null,null,null,null,null,null,null,null,null,null,null,null,null,null,null,null,{"$f":"V135+AB135","v":0},null,null,null,null,null,"Choisir dans la liste"]
["Mobiliser des savoirs hautement spécialisés de la sociologie, développer une conscience critique des savoirs disciplinaires et inter-disciplinaires",2,1,null,null,null,"Séminaire dans les équipes du Centre Max Weber",2,1,"obligatoire",null,15,null,null,null,null,"x",null,null,null,null,1,null,null,null,null,null,null,1,"x",null,null,null,null,"Obligatoire"]
["Élaboration d'une recherche,  mise en place d'un terrain de recherche et d'une méthodologie",8,2,null,null,null,"Suivi de terrain et mémoire 1 : Construire et présenter son mémoire de recherche",8,2,"obligatoire",null,21,null,null,15,null,"x",null,null,null,null,1,null,null,null,null,null,null,1,"x",null,null,null,null,"Obligatoire"]
["RNCP31499BC02 Développement et intégration de savoirs hautement spécialisés .  RNCP34132BC03  : Maîtriser les outils de l’enquête de terrain ",6,2,"UE3 : Formes et outils de l'enquête",6,2,"2 ateliers au choix (parmi les 3)",null,null,"choisir dans la liste",null,null,null,null,null,null,null,null,null,null,null,null,null,null,null,null,null,null,0,null,null,null,null,null,"Choisir dans la liste"]
["Se former en vue d'une  maîtrise des outils de l'enquête d'investigation ",3,1,null,null,null,"L'enquête d'investigation",3,1,"optionnel",null,21,null,null,15,null,"x",null,null,null,null,1,null,null,null,null,null,null,1,"x",null,null,null,null,"Obligatoire"]
["Se former en vue d'une maîtrise des outils de l'enquête numérique",3,1,null,null,null,"L'enquête numérique",3,1,"optionnel",null,21,null,null,15,null,"x",null,null,null,null,1,null,null,null,null,null,null,1,"x",null,null,null,null,"Obligatoire"]
["Se former en vue d'une maîtrise des outils de l'enquête sociohistorique",3,1,null,null,null,"L'enquête sociohistorique et ses archives",3,1,"optionnel",null,21,null,null,15,null,"x",null,null,null,null,1,null,null,null,null,null,null,1,"x",null,null,null,null,"Obligatoire"]
[" RNCP34132BC01 - Appui à la transformation en contexte professionnel          RNCP31499BC02 Développement et intégration de savoirs hautement spécialisés",5,2,"UE4 : Pratique de l'enquête et professionnalisation",5,2,null,null,null,null,null,null,null,null,null,null,null,null,null,null,null,null,null,null,null,null,null,null,0,null,null,null,null,null,"Choisir dans la liste"]
["Conduire un projet de recherche mobilisant des compétences pluridisciplinaires dans un cadre professionnel",3,1,null,null,null,"Conduite de projet de recherche en milieu professionnel",3,1,"obligatoire",null,15,null,null,15,null,"x",null,null,null,null,1,null,null,null,null,null,null,1,"x",null,null,null,null,"Obligatoire"]
["Identifier des compétences et des savoirs en rapport avec un projet professionnel",2,1,null,null,null,"Les métiers de l'enquête",2,1,"obligatoire",null,15,null,null,null,null,"x",null,null,null,null,1,null,null,null,null,null,null,1,"x",null,null,null,null,"Obligatoire"]
["RNCP31499BC03 Communication spécialisée pour le transfert de connaissances",3,1,"UE5 :  Langue",3,1,null,null,null,null,null,null,null,null,null,null,null,null,null,null,null,null,null,null,null,null,null,null,0,null,null,null,null,null,"Choisir dans la liste"]
["Maîtriser une langue étrangère : lire et communiquer en Anglais en lien avec la littérature sociologique",null,null,null,null,null,"Anglais pour sociologues",3,1,"obligatoire",null,15,null,null,null,null,"x",null,"x",null,null,1,null,null,null,null,null,null,1,"x",null,"x",null,null,"Obligatoire"]
[null,null,null,null,null,null,null,null,null,"choisir dans la liste",null,null,null,null,null,null,null,null,null,null,null,null,null,null,null,null,null,null,0,null,null,null,null,null,"Choisir dans la liste"]
[null,null,null,null,null,null,null,null,null,"choisir dans la liste",null,null,null,null,null,null,null,null,null,null,null,null,null,null,null,null,null,null,0,null,null,null,null,null,"Choisir dans la liste"]
[null,null,null,null,null,null,null,null,null,"choisir dans la liste",null,null,null,null,null,null,null,null,null,null,null,null,null,null,null,null,null,null,0,null,null,null,null,null,"Choisir dans la liste"]
[null,null,null,null,null,null,null,null,null,"choisir dans la liste",null,null,null,null,null,null,null,null,null,null,null,null,null,null,null,null,null,null,0,null,null,null,null,null,"Choisir dans la liste"]
[null,null,null,null,null,null,null,null,null,"choisir dans la liste",null,null,null,null,null,null,null,null,null,null,null,null,null,null,null,null,null,null,0,null,null,null,null,null,"Choisir dans la liste"]
[null,null,null,null,null,null,null,null,null,"choisir dans la liste",null,null,null,null,null,null,null,null,null,null,null,null,null,null,null,null,null,null,0,null,null,null,null,null,"Choisir dans la liste"]
[null,null,null,null,null,null,null,null,null,"choisir dans la liste",null,null,null,null,null,null,null,null,null,null,null,null,null,null,null,null,null,null,0,null,null,null,null,null,"Choisir dans la liste"]
[null,null,null,null,null,null,null,null,null,"choisir dans la liste",null,null,null,null,null,null,null,null,null,null,null,null,null,null,null,null,null,null,0,null,null,null,null,null,"Choisir dans la liste"]
[null,null,null,null,null,null,null,null,null,"choisir dans la liste",null,null,null,null,null,null,null,null,null,null,null,null,null,null,null,null,null,null,0,null,null,null,null,null,"Choisir dans la liste"]
[null,null,null,null,null,null,null,null,null,"choisir dans la liste",null,null,null,null,null,null,null,null,null,null,null,null,null,null,null,null,null,null,0,null,null,null,null,null,"Choisir dans la liste"]
[null,null,null,null,null,null,null,null,null,"choisir dans la liste",null,null,null,null,null,null,null,null,null,null,null,null,null,null,null,null,null,null,0,null,null,null,null,null,"Choisir dans la liste"]
[null,null,null,null,null,null,null,null,null,"choisir dans la liste",null,null,null,null,null,null,null,null,null,null,null,null,null,null,null,null,null,null,0,null,null,null,null,null,"Choisir dans la liste"]
[null,null,null,null,null,null,null,null,null,"choisir dans la liste",null,null,null,null,null,null,null,null,null,null,null,null,null,null,null,null,null,null,0,null,null,null,null,null,"Choisir dans la liste"]
[null,null,null,null,null,null,null,null,null,"choisir dans la liste",null,null,null,null,null,null,null,null,null,null,null,null,null,null,null,null,null,null,0,null,null,null,null,null,"Choisir dans la liste"]
[null,null,null,null,null,null,null,null,null,"choisir dans la liste",160,null,null,null,60,null,null,null,null,null,null,null,null,null,null,null,null,null,0,null,null,null,null,null,"Choisir dans la liste"]
["Total par étudiant",null,"-","-",null,"-","-",null,"-","-"]
[]
[]
[]
[]
["ZONE DE TEXTE / COMMENTAIRES : (ALT+ENTREE pour aller à la ligne)\n\n"]
[]
[]
[]
[]
[]
[]
[]
[]
[]
[]
[]
[]
[]
[]
[]
[]
[]
[]
["Semestre 10"]
[]
["MAQUETTE",null,null,null,null,null,null,null,null,null,null,null,null,null,null,null,"MCCC"]
["Blocs de connaissances et de compétences (BCC)",null,null,"Unités d'Enseignement (UE)",null,null,"Eléments constitutifs d'UE (ECUE)",null,null,"Indiquer si l'UE ou l'ECUE est\n obligatoire, optionnel ou facultatif\n(menu déroulant)","Volumes horaires prévisionnels (temps étudiants)",null,null,null,null,null,"Poids relatifs du contrôle continu (CC et des examens de fin de semestre (CT), Nature des épreuves, Rattrapage"]
["Intitulés","Crédits","Coefficients","Intitulés","Crédits","Coefficients","Intitulés","Crédits","Coefficients",null,null,null,null,null,null,null,"Session principale ou session 1",null,null,null,null,null,null,null,null,null,null,null,null,"Rattrapage ou session 2"]
[null,null,null,null,null,null,null,null,null,null,"Enseignements",null,null,null,null,null,"Nature des épreuves CC (cocher)",null,null,null,null,"CC\nCoeff. (%)","Nature des épreuves CT (cocher)",null,null,null,null,"CC\nCoeff. (%)","Total session = 100 %","Nature des épreuves de rattrapage (cocher)",null,null,null,null,"Modalité de prise en compte\n\nObligatoire ou Facultatif"]
[null,null,null,null,null,null,null,null,null,null,"CM","TD","TP","stage (heures)","PROJET","dont enseignements en langue étrangère \n(nombre d'heures)","Ecrit","Pratique (TP)","Oral","Mémoire","Soutenance",null,"Ecrit","Pratique (TP)","Oral","Mémoire","Soutenance",null,null,"Ecrit","Pratique (TP)","Oral","Mémoire","Soutenance"]
["RNCP31499BC02 Développement et intégration de savoirs hautement spécialisés RNCP31499BC03 Communication spécialisée pour le transfert de connaissance",5,2,"UE1 : Théories de l’enquête (cours fondamentaux)",5,2,null,null,null,null,null,null,null,null,null,null,null,null,null,null,null,null,null,null,null,null,null,null,{"$f":"V193+AB193","v":0},null,null,null,null,null,"Choisir dans la liste"]
["S'approprier une réflexion théorique et développer une conscience critique des savoirs en lien avec des problématiques sociologiques",2,1,null,null,null,"Gestion du risque et construction des problèmes publics",2,1,"obligatoire",21,null,null,null,null,null,null,null,null,null,null,null,"x",null,null,null,null,1,{"$f":"V194+AB194","v":1},"x",null,null,null,null,"Obligatoire"]
["S'approprier une réflexion théorique sur des terrains internationaux, communiquer et croiser des regards sociologiques",3,1,null,null,null,"Enquêtes multisituées et terrains internationaux (Asie, Afrique, Amérique)",3,1,"obligatoire",21,null,null,null,null,null,null,null,null,null,null,null,"x",null,null,null,null,1,1,"x",null,null,null,null,"Obligatoire"]
["RNCP31499BC02 Développement et intégration de savoirs hautement spécialisés RNCP31499BC03 Communication spécialisée pour le transfert de connaissance",16,5,"UE2 : Approndissement par la recherche",16,5,null,null,null,null,null,null,null,null,null,null,null,null,null,null,null,null,null,null,null,null,null,null,0,null,null,null,null,null,"Choisir dans la liste"]
["Mobiliser des savoirs hautement spécialisés de la sociologie, développer une conscience critique des savoirs disciplinaires et inter-disciplinaires",1,1,null,null,null,"Séminaire dans les équipes du Centre Max Weber",1,1,"obligatoire",null,15,null,null,null,null,"x",null,null,null,null,1,null,null,null,null,null,null,1,"x",null,null,null,null,"Obligatoire"]
["Ecriture et communication scientifiques d'une recherche",15,4,null,null,null,"Suivi de terrain et mémoire 2 : Ecrire et soutenir un mémoire",15,4,"obligatoire",null,21,null,null,null,null,null,null,null,"x","x",1,null,null,null,null,null,null,1,null,null,null,"x","x","Obligatoire"]
["RNCP31499BC02 Développement et intégration de savoirs hautement spécialisés .  RNCP34132BC03  : Maîtriser les outils de l’enquête de terrain ",4,2,"UE3 : Formes et outils de l'enquête",4,2,"2 ateliers au choix (parmi les 3)",null,null,null,null,null,null,null,null,null,null,null,null,null,null,null,null,null,null,null,null,null,0,null,null,null,null,null,"Choisir dans la liste"]
["Se former aux outils de l'image et de l'enquête",2,1,null,null,null,"Enquête et images (photographie et film)",2,1,"Optionnel",null,21,null,null,15,null,"x",null,null,null,null,1,null,null,null,null,null,null,1,"x",null,null,null,null,"Obligatoire"]
["Se former aux outils de l'enquête d'opinion",2,1,null,null,null,"Enquêtes d'opinion (sondage, entretien collectif, focus groupe)",2,1,"optionnel",null,21,null,null,15,null,"x",null,null,null,null,1,null,null,null,null,null,null,1,"x",null,null,null,null,"Obligatoire"]
["Se former aux outils de la cartographie ",2,1,null,null,null,"Cartographie et données sociales ",2,1,"optionnel",null,21,null,null,15,null,"x",null,null,null,null,1,null,null,null,null,null,null,1,"x",null,null,null,null,"Obligatoire"]
[" RNCP34132BC01 - Appui à la transformation en contexte professionnel          RNCP31499BC02 Développement et intégration de savoirs hautement spécialisés",5,2,"UE4 : Pratique de l'enquête et professionnalisation",5,2,null,null,null,null,null,null,null,null,null,null,null,null,null,null,null,null,null,null,null,null,null,null,0,null,null,null,null,null,"Choisir dans la liste"]
["Mobiliser des savoirs hautement spécialisés de la sociologie dans un cadre professionnel",5,2,null,null,null,"Stage",5,2,"obligatoire",null,null,null,150,"6/ suivi etudiant",null,null,null,"x",null,null,1,null,null,null,null,null,null,1,null,null,"x",null,null,"Obligatoire"]
[null,null,null,null,null,null,null,null,null,"choisir dans la liste",null,null,null,null,null,null,null,null,null,null,null,null,null,null,null,null,null,null,0,null,null,null,null,null,"Choisir dans la liste"]
[null,null,null,null,null,null,null,null,null,"choisir dans la liste",null,null,null,null,null,null,null,null,null,null,null,null,null,null,null,null,null,null,0,null,null,null,null,null,"Choisir dans la liste"]
[null,null,null,null,null,null,null,null,null,"choisir dans la liste",null,null,null,null,null,null,null,null,null,null,null,null,null,null,null,null,null,null,0,null,null,null,null,null,"Choisir dans la liste"]
[null,null,null,null,null,null,null,null,null,"choisir dans la liste",null,null,null,null,null,null,null,null,null,null,null,null,null,null,null,null,null,null,0,null,null,null,null,null,"Choisir dans la liste"]
[null,null,null,null,null,null,null,null,null,"choisir dans la liste",null,null,null,null,null,null,null,null,null,null,null,null,null,null,null,null,null,null,0,null,null,null,null,null,"Choisir dans la liste"]
[null,null,null,null,null,null,null,null,null,"choisir dans la liste",null,null,null,null,null,null,null,null,null,null,null,null,null,null,null,null,null,null,0,null,null,null,null,null,"Choisir dans la liste"]
[null,null,null,null,null,null,null,null,null,"choisir dans la liste",null,null,null,null,null,null,null,null,null,null,null,null,null,null,null,null,null,null,0,null,null,null,null,null,"Choisir dans la liste"]
[null,null,null,null,null,null,null,null,null,"choisir dans la liste",null,null,null,null,null,null,null,null,null,null,null,null,null,null,null,null,null,null,0,null,null,null,null,null,"Choisir dans la liste"]
[null,null,null,null,null,null,null,null,null,"choisir dans la liste",null,null,null,null,null,null,null,null,null,null,null,null,null,null,null,null,null,null,0,null,null,null,null,null,"Choisir dans la liste"]
[null,null,null,null,null,null,null,null,null,"choisir dans la liste",null,null,null,null,null,null,null,null,null,null,null,null,null,null,null,null,null,null,0,null,null,null,null,null,"Choisir dans la liste"]
[null,null,null,null,null,null,null,null,null,"choisir dans la liste",null,null,null,null,null,null,null,null,null,null,null,null,null,null,null,null,null,null,0,null,null,null,null,null,"Choisir dans la liste"]
[null,null,null,null,null,null,null,null,null,"choisir dans la liste",null,null,null,null,null,null,null,null,null,null,null,null,null,null,null,null,null,null,0,null,null,null,null,null,"Choisir dans la liste"]
[null,null,null,null,null,null,null,null,null,"choisir dans la liste",null,null,null,null,null,null,null,null,null,null,null,null,null,null,null,null,null,null,0,null,null,null,null,null,"Choisir dans la liste"]
[null,null,null,null,null,null,null,null,null,"choisir dans la liste",null,null,null,null,null,null,null,null,null,null,null,null,null,null,null,null,null,null,0,null,null,null,null,null,"Choisir dans la liste"]
[null,null,null,null,null,null,null,null,null,"choisir dans la liste",null,null,null,null,null,null,null,null,null,null,null,null,null,null,null,null,null,null,0,null,null,null,null,null,"Choisir dans la liste"]
[null,null,null,null,null,null,null,null,null,"choisir dans la liste",null,null,null,null,null,null,null,null,null,null,null,null,null,null,null,null,null,null,0,null,null,null,null,null,"Choisir dans la liste"]
[null,null,null,null,null,null,null,null,null,"choisir dans la liste",null,null,null,null,null,null,null,null,null,null,null,null,null,null,null,null,null,null,0,null,null,null,null,null,"Choisir dans la liste"]
[null,null,null,null,null,null,null,null,null,"choisir dans la liste",120,null,null,150,"30 + 6",null,null,null,null,null,null,null,null,null,null,null,null,null,0,null,null,null,null,null,"Choisir dans la liste"]
["Total par étudiant",null,"-","-",null,"-","-",null,"-","-"]
[]
[]
[]
[]
["ZONE DE TEXTE / COMMENTAIRES : (ALT+ENTREE pour aller à la ligne)\n\n"]

{"sheet":"ANNEXE FINANCIERE","index":2,"n_rows":338,"n_cols":15,"rows_kept":338,"cut":false,"hidden":false,"merged":[[12,10,13,10],[12,11,13,11],[10,0,10,4],[10,5,10,14],[11,2,12,4],[11,5,11,7],[11,8,11,10],[11,11,11,13],[11,14,14,14],[12,0,14,0],[12,1,14,1],[12,5,13,5],[96,7,97,7],[96,8,97,8],[12,12,13,12],[12,13,13,13],[13,2,13,4],[94,0,94,4],[94,5,94,14],[95,2,96,4],[95,5,95,7],[95,8,95,10],[95,11,95,13],[95,14,98,14],[12,6,13,6],[12,7,13,7],[12,8,13,8],[12,9,13,9],[97,2,97,4],[96,0,98,0],[96,1,98,1],[96,5,97,5],[96,6,97,6],[96,9,97,9],[96,10,97,10],[96,11,97,11],[96,12,97,12],[96,13,97,13],[264,8,265,8],[263,14,266,14],[262,0,262,4],[177,0,177,4],[177,5,177,14],[178,2,179,4],[178,5,178,7],[178,8,178,10],[178,11,178,13],[178,14,181,14],[179,0,181,0],[179,1,181,1],[179,5,180,5],[179,6,180,6],[179,7,180,7],[179,8,180,8],[264,0,266,0],[264,1,266,1],[264,5,265,5],[264,6,265,6],[264,7,265,7],[263,2,264,4],[263,5,263,7],[265,2,265,4],[264,9,265,9],[264,10,265,10],[264,11,265,11],[180,2,180,4],[232,13,233,13],[179,9,180,9],[179,10,180,10],[179,11,180,11],[179,12,180,12],[179,13,180,13],[262,5,262,14],[232,14,233,14],[264,12,265,12],[264,13,265,13],[263,8,263,10],[263,11,263,13]]}
[]
[]
[]
[]
[{"$f":"'MAQUETTE VIERGE'!#REF!","v":{"$error":"#REF!"}}]
[{"$f":"'MAQUETTE VIERGE'!#REF!","v":{"$error":"#REF!"}}]
[{"$f":"'MAQUETTE VIERGE'!#REF!","v":{"$error":"#REF!"}}]
[null,null,"CELLULES A REMPLIR"]
[{"$f":"'MAQUETTE VIERGE'!A3","v":"Semestre 7"}]
[]
["MAQUETTE",null,null,null,null,"Conversion en heures équivalent TD"]
["Unités d'Enseignement (UE)","Eléments constitutifs d'UE (ECUE)","Volumes horaires prévisionnels\n (temps étudiants)",null,null,"Heures prévisionnelles CM",null,null,"Heures prévisionnelles TD",null,null,"Heures prévisionnelles TP",null,null,"TOTAL"]
["Intitulés","Intitulés",null,null,null,"Nombre de groupes de CM","Heures d'enseignement CM","Heures d'enseignement équivalent TD","Nombre de groupes de TD","Heures d'enseignement TD","Heures d'enseignement équivalent TD","Nombre de groupes de TP","Heures d'enseignement TP","Heures d'enseignement équivalent TD"]
[null,null,"Enseignements"]
[null,null,"CM","TD","TP",null,"= nb groupe CM x heures CM maquette","= heures d'enseignement CM * 1,5",null,"= nb groupe TD x heures TD maquette","= heures d'enseignement TD * 1",null,"= nb groupe TD x heures TD maquette","= heures d'enseignement TD * 0,87 (1h TP équivaut en moyenne à 0,87h eqTD à l'UJM)"]
[{"$f":"'MAQUETTE VIERGE'!D10","v":"UE1- Cours fondamentaux"},{"$f":"'MAQUETTE VIERGE'!G10","v":0},{"$f":"'MAQUETTE VIERGE'!K10","v":0},{"$f":"'MAQUETTE VIERGE'!L10","v":0},{"$f":"'MAQUETTE VIERGE'!M10","v":0},null,{"$f":"F16*C16","v":0},{"$f":"G16*1.5","v":0},null,{"$f":"I16*D16","v":0},{"$f":"J16*1","v":0},null,{"$f":"L16*E16","v":0},{"$f":"M16*0.87","v":0},{"$f":"H16+K16+N16","v":0}]
[{"$f":"'MAQUETTE VIERGE'!D11","v":0},{"$f":"'MAQUETTE VIERGE'!G11","v":"Inégalités et changement social"},{"$f":"'MAQUETTE VIERGE'!K11","v":21},{"$f":"'MAQUETTE VIERGE'!L11","v":0},{"$f":"'MAQUETTE VIERGE'!M11","v":0},1,{"$f":"F17*C17","v":21},{"$f":"G17*1.5","v":31.5},null,{"$f":"I17*D17","v":0},{"$f":"J17*1","v":0},null,{"$f":"L17*E17","v":0},{"$f":"M17*0.87","v":0},{"$f":"H17+K17+N17","v":31.5}]
[{"$f":"'MAQUETTE VIERGE'!D12","v":0},{"$f":"'MAQUETTE VIERGE'!G12","v":"Enquêtes sociologiques et intervention "},{"$f":"'MAQUETTE VIERGE'!K12","v":21},{"$f":"'MAQUETTE VIERGE'!L12","v":0},{"$f":"'MAQUETTE VIERGE'!M12","v":0},1,21,31.5,null,0,0,null,0,0,31.5]
[{"$f":"'MAQUETTE VIERGE'!D13","v":"UE2 Initiation à la recherche"},{"$f":"'MAQUETTE VIERGE'!G13","v":0},{"$f":"'MAQUETTE VIERGE'!K13","v":0},{"$f":"'MAQUETTE VIERGE'!L13","v":0},{"$f":"'MAQUETTE VIERGE'!M13","v":0},null,0,0,null,0,0,null,0,0,0]
[{"$f":"'MAQUETTE VIERGE'!D14","v":0},{"$f":"'MAQUETTE VIERGE'!G14","v":"Séminaire Recherche & Action"},{"$f":"'MAQUETTE VIERGE'!K14","v":0},{"$f":"'MAQUETTE VIERGE'!L14","v":21},{"$f":"'MAQUETTE VIERGE'!M14","v":0},null,0,0,1,21,21,null,0,0,21]
[{"$f":"'MAQUETTE VIERGE'!D15","v":0},{"$f":"'MAQUETTE VIERGE'!G15","v":"Séminaire Lutte contre les discriminations"},{"$f":"'MAQUETTE VIERGE'!K15","v":0},{"$f":"'MAQUETTE VIERGE'!L15","v":21},{"$f":"'MAQUETTE VIERGE'!M15","v":0},null,0,0,1,21,21,null,0,0,21]
[{"$f":"'MAQUETTE VIERGE'!D16","v":0},{"$f":"'MAQUETTE VIERGE'!G16","v":"Exposer la recherche"},{"$f":"'MAQUETTE VIERGE'!K16","v":0},{"$f":"'MAQUETTE VIERGE'!L16","v":12},{"$f":"'MAQUETTE VIERGE'!M16","v":0},null,0,0,1,12,12,null,0,0,12]
[{"$f":"'MAQUETTE VIERGE'!D17","v":"UE3 Ateliers de méthode et outils de l'enquête"},{"$f":"'MAQUETTE VIERGE'!G17","v":0},{"$f":"'MAQUETTE VIERGE'!K17","v":0},{"$f":"'MAQUETTE VIERGE'!L17","v":0},{"$f":"'MAQUETTE VIERGE'!M17","v":0},null,0,0,null,0,0,null,0,0,0]
[{"$f":"'MAQUETTE VIERGE'!D18","v":0},{"$f":"'MAQUETTE VIERGE'!G18","v":"Statistiques ethnographiques"},{"$f":"'MAQUETTE VIERGE'!K18","v":0},{"$f":"'MAQUETTE VIERGE'!L18","v":21},{"$f":"'MAQUETTE VIERGE'!M18","v":0},null,0,0,1,21,21,null,0,0,21]
[{"$f":"'MAQUETTE VIERGE'!D19","v":0},{"$f":"'MAQUETTE VIERGE'!G19","v":"Ethnographie : immersion et description"},{"$f":"'MAQUETTE VIERGE'!K19","v":0},{"$f":"'MAQUETTE VIERGE'!L19","v":21},{"$f":"'MAQUETTE VIERGE'!M19","v":0},null,0,0,1,21,21,null,0,0,21]
[{"$f":"'MAQUETTE VIERGE'!D20","v":0},{"$f":"'MAQUETTE VIERGE'!G20","v":"Enquête numérique et images animées"},{"$f":"'MAQUETTE VIERGE'!K20","v":0},{"$f":"'MAQUETTE VIERGE'!L20","v":21},{"$f":"'MAQUETTE VIERGE'!M20","v":0},null,0,0,1,21,21,null,0,0,21]
[{"$f":"'MAQUETTE VIERGE'!D21","v":"UE4 Enseignements ciblés "},{"$f":"'MAQUETTE VIERGE'!G21","v":0},{"$f":"'MAQUETTE VIERGE'!K21","v":0},{"$f":"'MAQUETTE VIERGE'!L21","v":0},{"$f":"'MAQUETTE VIERGE'!M21","v":0},null,0,0,null,0,0,null,0,0,0]
[{"$f":"'MAQUETTE VIERGE'!D22","v":0},{"$f":"'MAQUETTE VIERGE'!G22","v":"Atelier insertion professionnelle"},{"$f":"'MAQUETTE VIERGE'!K22","v":0},{"$f":"'MAQUETTE VIERGE'!L22","v":9},{"$f":"'MAQUETTE VIERGE'!M22","v":0},null,0,0,1,9,9,null,0,0,9]
[{"$f":"'MAQUETTE VIERGE'!D23","v":0},{"$f":"'MAQUETTE VIERGE'!G23","v":"Approche des organisations"},{"$f":"'MAQUETTE VIERGE'!K23","v":0},{"$f":"'MAQUETTE VIERGE'!L23","v":12},{"$f":"'MAQUETTE VIERGE'!M23","v":0},null,0,0,1,12,12,null,0,0,12]
[{"$f":"'MAQUETTE VIERGE'!D24","v":"UE5 Langue"},{"$f":"'MAQUETTE VIERGE'!G24","v":0},{"$f":"'MAQUETTE VIERGE'!K24","v":0},{"$f":"'MAQUETTE VIERGE'!L24","v":0},{"$f":"'MAQUETTE VIERGE'!M24","v":0},null,0,0,null,0,0,null,0,0,0]
[{"$f":"'MAQUETTE VIERGE'!D25","v":0},{"$f":"'MAQUETTE VIERGE'!G25","v":"Anglais pour sociologues"},{"$f":"'MAQUETTE VIERGE'!K25","v":0},{"$f":"'MAQUETTE VIERGE'!L25","v":21},{"$f":"'MAQUETTE VIERGE'!M25","v":0},null,0,0,1,21,21,null,0,0,21]
[{"$f":"'MAQUETTE VIERGE'!D26","v":0},{"$f":"'MAQUETTE VIERGE'!G26","v":0},{"$f":"'MAQUETTE VIERGE'!K26","v":0},{"$f":"'MAQUETTE VIERGE'!L26","v":0},{"$f":"'MAQUETTE VIERGE'!M26","v":0},null,0,0,null,0,0,null,0,0,0]
[{"$f":"'MAQUETTE VIERGE'!D27","v":0},{"$f":"'MAQUETTE VIERGE'!G27","v":0},{"$f":"'MAQUETTE VIERGE'!K27","v":0},{"$f":"'MAQUETTE VIERGE'!L27","v":0},{"$f":"'MAQUETTE VIERGE'!M27","v":0},null,0,0,null,0,0,null,0,0,0]
[{"$f":"'MAQUETTE VIERGE'!D28","v":0},{"$f":"'MAQUETTE VIERGE'!G28","v":0},{"$f":"'MAQUETTE VIERGE'!K28","v":0},{"$f":"'MAQUETTE VIERGE'!L28","v":0},{"$f":"'MAQUETTE VIERGE'!M28","v":0},null,0,0,null,0,0,null,0,0,0]
[{"$f":"'MAQUETTE VIERGE'!D29","v":0},{"$f":"'MAQUETTE VIERGE'!G29","v":0},{"$f":"'MAQUETTE VIERGE'!K29","v":0},{"$f":"'MAQUETTE VIERGE'!L29","v":0},{"$f":"'MAQUETTE VIERGE'!M29","v":0},null,0,0,null,0,0,null,0,0,0]
[{"$f":"'MAQUETTE VIERGE'!D30","v":0},{"$f":"'MAQUETTE VIERGE'!G30","v":0},{"$f":"'MAQUETTE VIERGE'!K30","v":0},{"$f":"'MAQUETTE VIERGE'!L30","v":0},{"$f":"'MAQUETTE VIERGE'!M30","v":0},null,0,0,null,0,0,null,0,0,0]
[{"$f":"'MAQUETTE VIERGE'!D31","v":0},{"$f":"'MAQUETTE VIERGE'!G31","v":0},{"$f":"'MAQUETTE VIERGE'!K31","v":0},{"$f":"'MAQUETTE VIERGE'!L31","v":0},{"$f":"'MAQUETTE VIERGE'!M31","v":0},null,0,0,null,0,0,null,0,0,0]
[{"$f":"'MAQUETTE VIERGE'!D32","v":0},{"$f":"'MAQUETTE VIERGE'!G32","v":0},{"$f":"'MAQUETTE VIERGE'!K32","v":0},{"$f":"'MAQUETTE VIERGE'!L32","v":0},{"$f":"'MAQUETTE VIERGE'!M32","v":0},null,0,0,null,0,0,null,0,0,0]
[{"$f":"'MAQUETTE VIERGE'!D33","v":0},{"$f":"'MAQUETTE VIERGE'!G33","v":0},{"$f":"'MAQUETTE VIERGE'!K33","v":0},{"$f":"'MAQUETTE VIERGE'!L33","v":0},{"$f":"'MAQUETTE VIERGE'!M33","v":0},null,0,0,null,0,0,null,0,0,0]
[{"$f":"'MAQUETTE VIERGE'!D34","v":0},{"$f":"'MAQUETTE VIERGE'!G34","v":0},{"$f":"'MAQUETTE VIERGE'!K34","v":0},{"$f":"'MAQUETTE VIERGE'!L34","v":0},{"$f":"'MAQUETTE VIERGE'!M34","v":0},null,0,0,null,0,0,null,0,0,0]
[{"$f":"'MAQUETTE VIERGE'!D35","v":0},{"$f":"'MAQUETTE VIERGE'!G35","v":0},{"$f":"'MAQUETTE VIERGE'!K35","v":0},{"$f":"'MAQUETTE VIERGE'!L35","v":0},{"$f":"'MAQUETTE VIERGE'!M35","v":0},null,0,0,null,0,0,null,0,0,0]
[{"$f":"'MAQUETTE VIERGE'!D36","v":0},{"$f":"'MAQUETTE VIERGE'!G36","v":0},{"$f":"'MAQUETTE VIERGE'!K36","v":0},{"$f":"'MAQUETTE VIERGE'!L36","v":0},{"$f":"'MAQUETTE VIERGE'!M36","v":0},null,0,0,null,0,0,null,0,0,0]
[{"$f":"'MAQUETTE VIERGE'!D37","v":0},{"$f":"'MAQUETTE VIERGE'!G37","v":0},{"$f":"'MAQUETTE VIERGE'!K37","v":0},{"$f":"'MAQUETTE VIERGE'!L37","v":0},{"$f":"'MAQUETTE VIERGE'!M37","v":0},null,0,0,null,0,0,null,0,0,0]
[{"$f":"'MAQUETTE VIERGE'!D38","v":0},{"$f":"'MAQUETTE VIERGE'!G38","v":0},{"$f":"'MAQUETTE VIERGE'!K38","v":0},{"$f":"'MAQUETTE VIERGE'!L38","v":0},{"$f":"'MAQUETTE VIERGE'!M38","v":0},null,0,0,null,0,0,null,0,0,0]
[{"$f":"'MAQUETTE VIERGE'!D39","v":0},{"$f":"'MAQUETTE VIERGE'!G39","v":0},{"$f":"'MAQUETTE VIERGE'!K39","v":168},{"$f":"'MAQUETTE VIERGE'!L39","v":0},{"$f":"'MAQUETTE VIERGE'!M39","v":0},null,0,0,null,0,0,null,0,0,0]
[]
[null,null,null,null,null,null,null,null,null,null,null,null,null,"TOTAL \nFace à face",{"$f":"SUM(O16:O45)","v":222}]
[]
["Stage / Suivi","Valorisation du suivi pour un étudiant ou pour un groupe d'étudiants","Nombre d'étudiants ou nombre de groupes suiivis","Total heures de \nsuivi"]
[null,null,null,{"$f":"C50*B50","v":0}]
[null,null,null,{"$f":"C51*B51","v":0}]
[null,null,null,0]
[null,null,null,0]
[null,null,null,0]
[null,null,null,0]
[null,null,null,0]
[null,null,null,0]
[null,null,null,0]
[null,null,null,0]
[null,null,null,0]
[null,null,null,0]
[null,null,null,0]
[null,null,null,0]
[null,null,null,0]
[]
[null,null,"TOTAL Stage/Suivi",{"$f":"SUM(D50:D64)","v":0},null,null,null,null,null,null,null,null,null,"TOTAL \nGénéral",{"$f":"O47+D66+B86","v":222}]
[]
[]
["Heures de référentiel / Responsabilité diplôme","Valorisation "]
[]
[]
[]
[]
[]
[]
[]
[]
[]
[]
[]
[]
[]
[]
[]
[]
["TOTAL Référentiel",{"$f":"SUM(B70:B84)","v":0}]
[]
[]
[]
[]
[]
[]
[{"$f":"'MAQUETTE VIERGE'!A64","v":"Semestre 8"}]
[]
["MAQUETTE",null,null,null,null,"Conversion en heures équivalent TD"]
["Unités d'Enseignement (UE)","Eléments constitutifs d'UE (ECUE)","Volumes horaires prévisionnels\n (temps étudiants)",null,null,"Heures prévisionnelles CM",null,null,"Heures prévisionnelles TD",null,null,"Heures prévisionnelles TP",null,null,"TOTAL"]
["Intitulés","Intitulés",null,null,null,"Nombre de groupes de CM","Heures d'enseignement CM","Heures d'enseignement équivalent TD","Nombre de groupes de TD","Heures d'enseignement TD","Heures d'enseignement équivalent TD","Nombre de groupes de TP","Heures d'enseignement TP","Heures d'enseignement équivalent TD"]
[null,null,"Enseignements"]
[null,null,"CM","TD","TP",null,"= nb groupe CM x heures CM maquette","= heures d'enseignement CM * 1,5",null,"= nb groupe TD x heures TD maquette","= heures d'enseignement TD * 1",null,"= nb groupe TD x heures TD maquette","= heures d'enseignement TD * 0,87 (1h TP équivaut en moyenne à 0,87h eqTD à l'UJM)"]
[{"$f":"'MAQUETTE VIERGE'!D71","v":"UE1- Cours fondamentaux"},{"$f":"'MAQUETTE VIERGE'!G71","v":0},{"$f":"'MAQUETTE VIERGE'!K71","v":0},{"$f":"'MAQUETTE VIERGE'!L71","v":0},{"$f":"'MAQUETTE VIERGE'!M71","v":0},null,{"$f":"F100*C100","v":0},{"$f":"G100*1.5","v":0},null,{"$f":"I100*D100","v":0},{"$f":"J100*1","v":0},null,{"$f":"L100*E100","v":0},{"$f":"M100*0.87","v":0},{"$f":"H100+K100+N100","v":0}]
[{"$f":"'MAQUETTE VIERGE'!D72","v":0},{"$f":"'MAQUETTE VIERGE'!G72","v":"Construction des problèmes publics "},{"$f":"'MAQUETTE VIERGE'!K72","v":21},{"$f":"'MAQUETTE VIERGE'!L72","v":0},{"$f":"'MAQUETTE VIERGE'!M72","v":0},1,{"$f":"F101*C101","v":21},{"$f":"G101*1.5","v":31.5},null,{"$f":"I101*D101","v":0},{"$f":"J101*1","v":0},null,{"$f":"L101*E101","v":0},{"$f":"M101*0.87","v":0},{"$f":"H101+K101+N101","v":31.5}]
[{"$f":"'MAQUETTE VIERGE'!D73","v":0},{"$f":"'MAQUETTE VIERGE'!G73","v":"Formes et régimes de l'enquête "},{"$f":"'MAQUETTE VIERGE'!K73","v":21},{"$f":"'MAQUETTE VIERGE'!L73","v":0},{"$f":"'MAQUETTE VIERGE'!M73","v":0},1,21,31.5,null,0,0,null,0,0,31.5]
[{"$f":"'MAQUETTE VIERGE'!D74","v":"UE2 - Pratique de la recherche "},{"$f":"'MAQUETTE VIERGE'!G74","v":0},{"$f":"'MAQUETTE VIERGE'!K74","v":0},{"$f":"'MAQUETTE VIERGE'!L74","v":0},{"$f":"'MAQUETTE VIERGE'!M74","v":0},null,0,0,null,0,0,null,0,0,0]
[{"$f":"'MAQUETTE VIERGE'!D75","v":0},{"$f":"'MAQUETTE VIERGE'!G75","v":"Séminaire Recherche  "},{"$f":"'MAQUETTE VIERGE'!K75","v":0},{"$f":"'MAQUETTE VIERGE'!L75","v":15},{"$f":"'MAQUETTE VIERGE'!M75","v":0},null,0,0,1,15,15,null,0,0,15]
[{"$f":"'MAQUETTE VIERGE'!D76","v":0},{"$f":"'MAQUETTE VIERGE'!G76","v":"Mémoire et suivi de terrain"},{"$f":"'MAQUETTE VIERGE'!K76","v":0},{"$f":"'MAQUETTE VIERGE'!L76","v":16},{"$f":"'MAQUETTE VIERGE'!M76","v":0},null,0,0,1,16,16,null,0,0,16]
[{"$f":"'MAQUETTE VIERGE'!D77","v":"UE3- Ateliers de méthode et outils de l'enquête"},{"$f":"'MAQUETTE VIERGE'!G77","v":0},{"$f":"'MAQUETTE VIERGE'!K77","v":0},{"$f":"'MAQUETTE VIERGE'!L77","v":0},{"$f":"'MAQUETTE VIERGE'!M77","v":0},null,0,0,null,0,0,null,0,0,0]
[{"$f":"'MAQUETTE VIERGE'!D78","v":0},{"$f":"'MAQUETTE VIERGE'!G78","v":"Statistiques ethnographiques"},{"$f":"'MAQUETTE VIERGE'!K78","v":0},{"$f":"'MAQUETTE VIERGE'!L78","v":21},{"$f":"'MAQUETTE VIERGE'!M78","v":0},null,0,0,1,21,21,null,0,0,21]
[{"$f":"'MAQUETTE VIERGE'!D79","v":0},{"$f":"'MAQUETTE VIERGE'!G79","v":"Outils du diagnostique et de l'évaluation"},{"$f":"'MAQUETTE VIERGE'!K79","v":0},{"$f":"'MAQUETTE VIERGE'!L79","v":21},{"$f":"'MAQUETTE VIERGE'!M79","v":0},null,0,0,1,21,21,null,0,0,21]
[{"$f":"'MAQUETTE VIERGE'!D80","v":0},{"$f":"'MAQUETTE VIERGE'!G80","v":"Cartographie et images."},{"$f":"'MAQUETTE VIERGE'!K80","v":0},{"$f":"'MAQUETTE VIERGE'!L80","v":21},{"$f":"'MAQUETTE VIERGE'!M80","v":0},null,0,0,null,0,0,null,0,0,0]
[{"$f":"'MAQUETTE VIERGE'!D81","v":"UE4 - Enseignements ciblés"},{"$f":"'MAQUETTE VIERGE'!G81","v":0},{"$f":"'MAQUETTE VIERGE'!K81","v":0},{"$f":"'MAQUETTE VIERGE'!L81","v":0},{"$f":"'MAQUETTE VIERGE'!M81","v":0},null,0,0,null,0,0,null,0,0,0]
[{"$f":"'MAQUETTE VIERGE'!D82","v":0},{"$f":"'MAQUETTE VIERGE'!G82","v":"Fonctionnement des institutions*"},{"$f":"'MAQUETTE VIERGE'!K82","v":9},{"$f":"'MAQUETTE VIERGE'!L82","v":12},{"$f":"'MAQUETTE VIERGE'!M82","v":0},1,9,13.5,1,12,12,null,0,0,25.5]
[{"$f":"'MAQUETTE VIERGE'!D83","v":0},{"$f":"'MAQUETTE VIERGE'!G83","v":"Stage"},{"$f":"'MAQUETTE VIERGE'!K83","v":0},{"$f":"'MAQUETTE VIERGE'!L83","v":0},{"$f":"'MAQUETTE VIERGE'!M83","v":0},null,0,0,null,0,0,null,0,0,0]
[{"$f":"'MAQUETTE VIERGE'!D84","v":"UE5 Langue"},{"$f":"'MAQUETTE VIERGE'!G84","v":0},{"$f":"'MAQUETTE VIERGE'!K84","v":0},{"$f":"'MAQUETTE VIERGE'!L84","v":0},{"$f":"'MAQUETTE VIERGE'!M84","v":0},null,0,0,null,0,0,null,0,0,0]
[{"$f":"'MAQUETTE VIERGE'!D85","v":0},{"$f":"'MAQUETTE VIERGE'!G85","v":"Anglais pour sociologues"},{"$f":"'MAQUETTE VIERGE'!K85","v":0},{"$f":"'MAQUETTE VIERGE'!L85","v":21},{"$f":"'MAQUETTE VIERGE'!M85","v":0},null,0,0,1,21,21,null,0,0,21]
[{"$f":"'MAQUETTE VIERGE'!D86","v":0},{"$f":"'MAQUETTE VIERGE'!G86","v":0},{"$f":"'MAQUETTE VIERGE'!K86","v":0},{"$f":"'MAQUETTE VIERGE'!L86","v":0},{"$f":"'MAQUETTE VIERGE'!M86","v":0},null,0,0,null,0,0,null,0,0,0]
[{"$f":"'MAQUETTE VIERGE'!D87","v":0},{"$f":"'MAQUETTE VIERGE'!G87","v":0},{"$f":"'MAQUETTE VIERGE'!K87","v":0},{"$f":"'MAQUETTE VIERGE'!L87","v":0},{"$f":"'MAQUETTE VIERGE'!M87","v":0},null,0,0,null,0,0,null,0,0,0]
[{"$f":"'MAQUETTE VIERGE'!D88","v":0},{"$f":"'MAQUETTE VIERGE'!G88","v":0},{"$f":"'MAQUETTE VIERGE'!K88","v":0},{"$f":"'MAQUETTE VIERGE'!L88","v":0},{"$f":"'MAQUETTE VIERGE'!M88","v":0},null,0,0,null,0,0,null,0,0,0]
[{"$f":"'MAQUETTE VIERGE'!D89","v":0},{"$f":"'MAQUETTE VIERGE'!G89","v":0},{"$f":"'MAQUETTE VIERGE'!K89","v":0},{"$f":"'MAQUETTE VIERGE'!L89","v":0},{"$f":"'MAQUETTE VIERGE'!M89","v":0},null,0,0,null,0,0,null,0,0,0]
[{"$f":"'MAQUETTE VIERGE'!D90","v":0},{"$f":"'MAQUETTE VIERGE'!G90","v":0},{"$f":"'MAQUETTE VIERGE'!K90","v":0},{"$f":"'MAQUETTE VIERGE'!L90","v":0},{"$f":"'MAQUETTE VIERGE'!M90","v":0},null,0,0,null,0,0,null,0,0,0]
[{"$f":"'MAQUETTE VIERGE'!D91","v":0},{"$f":"'MAQUETTE VIERGE'!G91","v":0},{"$f":"'MAQUETTE VIERGE'!K91","v":0},{"$f":"'MAQUETTE VIERGE'!L91","v":0},{"$f":"'MAQUETTE VIERGE'!M91","v":0},null,0,0,null,0,0,null,0,0,0]
[{"$f":"'MAQUETTE VIERGE'!D92","v":0},{"$f":"'MAQUETTE VIERGE'!G92","v":0},{"$f":"'MAQUETTE VIERGE'!K92","v":0},{"$f":"'MAQUETTE VIERGE'!L92","v":0},{"$f":"'MAQUETTE VIERGE'!M92","v":0},null,0,0,null,0,0,null,0,0,0]
[{"$f":"'MAQUETTE VIERGE'!D93","v":0},{"$f":"'MAQUETTE VIERGE'!G93","v":0},{"$f":"'MAQUETTE VIERGE'!K93","v":0},{"$f":"'MAQUETTE VIERGE'!L93","v":0},{"$f":"'MAQUETTE VIERGE'!M93","v":0},null,0,0,null,0,0,null,0,0,0]
[{"$f":"'MAQUETTE VIERGE'!D94","v":0},{"$f":"'MAQUETTE VIERGE'!G94","v":0},{"$f":"'MAQUETTE VIERGE'!K94","v":0},{"$f":"'MAQUETTE VIERGE'!L94","v":0},{"$f":"'MAQUETTE VIERGE'!M94","v":0},null,0,0,null,0,0,null,0,0,0]
[{"$f":"'MAQUETTE VIERGE'!D95","v":0},{"$f":"'MAQUETTE VIERGE'!G95","v":0},{"$f":"'MAQUETTE VIERGE'!K95","v":0},{"$f":"'MAQUETTE VIERGE'!L95","v":0},{"$f":"'MAQUETTE VIERGE'!M95","v":0},null,0,0,null,0,0,null,0,0,0]
[{"$f":"'MAQUETTE VIERGE'!D96","v":0},{"$f":"'MAQUETTE VIERGE'!G96","v":0},{"$f":"'MAQUETTE VIERGE'!K96","v":0},{"$f":"'MAQUETTE VIERGE'!L96","v":0},{"$f":"'MAQUETTE VIERGE'!M96","v":0},null,0,0,null,0,0,null,0,0,0]
[{"$f":"'MAQUETTE VIERGE'!D97","v":0},{"$f":"'MAQUETTE VIERGE'!G97","v":0},{"$f":"'MAQUETTE VIERGE'!K97","v":0},{"$f":"'MAQUETTE VIERGE'!L97","v":0},{"$f":"'MAQUETTE VIERGE'!M97","v":0},null,0,0,null,0,0,null,0,0,0]
[{"$f":"'MAQUETTE VIERGE'!D98","v":0},{"$f":"'MAQUETTE VIERGE'!G98","v":0},{"$f":"'MAQUETTE VIERGE'!K98","v":0},{"$f":"'MAQUETTE VIERGE'!L98","v":0},{"$f":"'MAQUETTE VIERGE'!M98","v":0},null,0,0,null,0,0,null,0,0,0]
[{"$f":"'MAQUETTE VIERGE'!D99","v":0},{"$f":"'MAQUETTE VIERGE'!G99","v":0},{"$f":"'MAQUETTE VIERGE'!K99","v":0},{"$f":"'MAQUETTE VIERGE'!L99","v":0},{"$f":"'MAQUETTE VIERGE'!M99","v":0},null,0,0,null,0,0,null,0,0,0]
[{"$f":"'MAQUETTE VIERGE'!D100","v":0},{"$f":"'MAQUETTE VIERGE'!G100","v":0},{"$f":"'MAQUETTE VIERGE'!K100","v":0},{"$f":"'MAQUETTE VIERGE'!L100","v":0},{"$f":"'MAQUETTE VIERGE'!M100","v":0},null,0,0,null,0,0,null,0,0,0]
[]
[null,null,null,null,null,null,null,null,null,null,null,null,null,"TOTAL \nFace à face",{"$f":"SUM(O100:O129)","v":182.5}]
[]
["Stage / Suivi","Valorisation du suivi pour un étudiant ou pour un groupe d'étudiants","Nombre d'étudiants ou nombre de groupes suiivis","Total heures de \nsuivi"]
[null,null,null,{"$f":"C134*B134","v":0}]
[null,null,null,{"$f":"C135*B135","v":0}]
[null,null,null,0]
[null,null,null,0]
[null,null,null,0]
[null,null,null,0]
[null,null,null,0]
[null,null,null,0]
[null,null,null,0]
[null,null,null,0]
[null,null,null,0]
[null,null,null,0]
[null,null,null,0]
[null,null,null,0]
[null,null,null,0]
[]
[null,null,"TOTAL Stage/Suivi",{"$f":"SUM(D134:D148)","v":0},null,null,null,null,null,null,null,null,null,"TOTAL \nGénéral",{"$f":"O131+D150+B170","v":182.5}]
[]
[]
["Heures de référentiel / Responsabilité diplôme","Valorisation "]
[]
[]
[]
[]
[]
[]
[]
[]
[]
[]
[]
[]
[]
[]
[]
[]
["TOTAL Référentiel",{"$f":"SUM(B154:B168)","v":0}]
[]
[]
[]
[]
[]
[{"$f":"'MAQUETTE VIERGE'!$A$125","v":"Semestre 9"}]
[]
["MAQUETTE",null,null,null,null,"Conversion en heures équivalent TD"]
["Unités d'Enseignement (UE)","Eléments constitutifs d'UE (ECUE)","Volumes horaires prévisionnels\n (temps étudiants)",null,null,"Heures prévisionnelles CM",null,null,"Heures prévisionnelles TD",null,null,"Heures prévisionnelles TP",null,null,"TOTAL"]
["Intitulés","Intitulés",null,null,null,"Nombre de groupes de CM","Heures d'enseignement CM","Heures d'enseignement équivalent TD","Nombre de groupes de TD","Heures d'enseignement TD","Heures d'enseignement équivalent TD","Nombre de groupes de TP","Heures d'enseignement TP","Heures d'enseignement équivalent TD"]
[null,null,"Enseignements"]
[null,null,"CM","TD","TP",null,"= nb groupe CM x heures CM maquette","= heures d'enseignement CM * 1,5",null,"= nb groupe TD x heures TD maquette","= heures d'enseignement TD * 1",null,"= nb groupe TD x heures TD maquette","= heures d'enseignement TD * 0,87 (1h TP équivaut en moyenne à 0,87h eqTD à l'UJM)"]
[{"$f":"'MAQUETTE VIERGE'!D132","v":"UE1 : Théories de l’enquête (cours fondamentaux)"},{"$f":"'MAQUETTE VIERGE'!G132","v":0},{"$f":"'MAQUETTE VIERGE'!K132","v":0},{"$f":"'MAQUETTE VIERGE'!L132","v":0},{"$f":"'MAQUETTE VIERGE'!M132","v":0},null,{"$f":"F183*C183","v":0},{"$f":"G183*1.5","v":0},null,{"$f":"I183*D183","v":0},{"$f":"J183*1","v":0},null,{"$f":"L183*E183","v":0},{"$f":"M183*0.87","v":0},{"$f":"H183+K183+N183","v":0}]
[{"$f":"'MAQUETTE VIERGE'!D133","v":0},{"$f":"'MAQUETTE VIERGE'!G133","v":"Étudier les inégalités sociales  "},{"$f":"'MAQUETTE VIERGE'!K133","v":21},{"$f":"'MAQUETTE VIERGE'!L133","v":0},{"$f":"'MAQUETTE VIERGE'!M133","v":0},1,{"$f":"F184*C184","v":21},{"$f":"G184*1.5","v":31.5},null,{"$f":"I184*D184","v":0},{"$f":"J184*1","v":0},null,{"$f":"L184*E184","v":0},{"$f":"M184*0.87","v":0},{"$f":"H184+K184+N184","v":31.5}]
[{"$f":"'MAQUETTE VIERGE'!D134","v":0},{"$f":"'MAQUETTE VIERGE'!G134","v":"Droit de l’enquête : éthique et politique de la donnée "},{"$f":"'MAQUETTE VIERGE'!K134","v":6},{"$f":"'MAQUETTE VIERGE'!L134","v":10},{"$f":"'MAQUETTE VIERGE'!M134","v":0},1,6,9,1,10,10,null,0,0,19]
[{"$f":"'MAQUETTE VIERGE'!D135","v":"UE2 : Approndissement par la recherche"},{"$f":"'MAQUETTE VIERGE'!G135","v":0},{"$f":"'MAQUETTE VIERGE'!K135","v":0},{"$f":"'MAQUETTE VIERGE'!L135","v":0},{"$f":"'MAQUETTE VIERGE'!M135","v":0},null,0,0,null,0,0,null,0,0,0]
[{"$f":"'MAQUETTE VIERGE'!D136","v":0},{"$f":"'MAQUETTE VIERGE'!G136","v":"Séminaire dans les équipes du Centre Max Weber"},{"$f":"'MAQUETTE VIERGE'!K136","v":0},{"$f":"'MAQUETTE VIERGE'!L136","v":15},{"$f":"'MAQUETTE VIERGE'!M136","v":0},null,0,0,1,15,15,null,0,0,15]
[{"$f":"'MAQUETTE VIERGE'!D137","v":0},{"$f":"'MAQUETTE VIERGE'!G137","v":"Suivi de terrain et mémoire 1 : Construire et présenter son mémoire de recherche"},{"$f":"'MAQUETTE VIERGE'!K137","v":0},{"$f":"'MAQUETTE VIERGE'!L137","v":21},{"$f":"'MAQUETTE VIERGE'!M137","v":0},null,0,0,1,21,21,null,0,0,21]
[{"$f":"'MAQUETTE VIERGE'!D138","v":"UE3 : Formes et outils de l'enquête"},{"$f":"'MAQUETTE VIERGE'!G138","v":"2 ateliers au choix (parmi les 3)"},{"$f":"'MAQUETTE VIERGE'!K138","v":0},{"$f":"'MAQUETTE VIERGE'!L138","v":0},{"$f":"'MAQUETTE VIERGE'!M138","v":0},null,0,0,null,0,0,null,0,0,0]
[{"$f":"'MAQUETTE VIERGE'!D139","v":0},{"$f":"'MAQUETTE VIERGE'!G139","v":"L'enquête d'investigation"},{"$f":"'MAQUETTE VIERGE'!K139","v":0},{"$f":"'MAQUETTE VIERGE'!L139","v":21},{"$f":"'MAQUETTE VIERGE'!M139","v":0},null,0,0,1,21,21,null,0,0,21]
[{"$f":"'MAQUETTE VIERGE'!D140","v":0},{"$f":"'MAQUETTE VIERGE'!G140","v":"L'enquête numérique"},{"$f":"'MAQUETTE VIERGE'!K140","v":0},{"$f":"'MAQUETTE VIERGE'!L140","v":21},{"$f":"'MAQUETTE VIERGE'!M140","v":0},null,0,0,1,21,21,null,0,0,21]
[{"$f":"'MAQUETTE VIERGE'!D141","v":0},{"$f":"'MAQUETTE VIERGE'!G141","v":"L'enquête sociohistorique et ses archives"},{"$f":"'MAQUETTE VIERGE'!K141","v":0},{"$f":"'MAQUETTE VIERGE'!L141","v":21},{"$f":"'MAQUETTE VIERGE'!M141","v":0},null,0,0,1,21,21,null,0,0,21]
[{"$f":"'MAQUETTE VIERGE'!D142","v":"UE4 : Pratique de l'enquête et professionnalisation"},{"$f":"'MAQUETTE VIERGE'!G142","v":0},{"$f":"'MAQUETTE VIERGE'!K142","v":0},{"$f":"'MAQUETTE VIERGE'!L142","v":0},{"$f":"'MAQUETTE VIERGE'!M142","v":0},null,0,0,null,0,0,null,0,0,0]
[{"$f":"'MAQUETTE VIERGE'!D143","v":0},{"$f":"'MAQUETTE VIERGE'!G143","v":"Conduite de projet de recherche en milieu professionnel"},{"$f":"'MAQUETTE VIERGE'!K143","v":0},{"$f":"'MAQUETTE VIERGE'!L143","v":15},{"$f":"'MAQUETTE VIERGE'!M143","v":0},null,0,0,1,15,15,null,0,0,15]
[{"$f":"'MAQUETTE VIERGE'!D144","v":0},{"$f":"'MAQUETTE VIERGE'!G144","v":"Les métiers de l'enquête"},{"$f":"'MAQUETTE VIERGE'!K144","v":0},{"$f":"'MAQUETTE VIERGE'!L144","v":15},{"$f":"'MAQUETTE VIERGE'!M144","v":0},null,0,0,1,15,15,null,0,0,15]
[{"$f":"'MAQUETTE VIERGE'!D145","v":"UE5 :  Langue"},{"$f":"'MAQUETTE VIERGE'!G145","v":0},{"$f":"'MAQUETTE VIERGE'!K145","v":0},{"$f":"'MAQUETTE VIERGE'!L145","v":0},{"$f":"'MAQUETTE VIERGE'!M145","v":0},null,0,0,null,0,0,null,0,0,0]
[{"$f":"'MAQUETTE VIERGE'!D146","v":0},{"$f":"'MAQUETTE VIERGE'!G146","v":"Anglais pour sociologues"},{"$f":"'MAQUETTE VIERGE'!K146","v":0},{"$f":"'MAQUETTE VIERGE'!L146","v":15},{"$f":"'MAQUETTE VIERGE'!M146","v":0},null,0,0,1,15,15,null,0,0,15]
[{"$f":"'MAQUETTE VIERGE'!D147","v":0},{"$f":"'MAQUETTE VIERGE'!G147","v":0},{"$f":"'MAQUETTE VIERGE'!K147","v":0},{"$f":"'MAQUETTE VIERGE'!L147","v":0},{"$f":"'MAQUETTE VIERGE'!M147","v":0},null,0,0,null,0,0,null,0,0,0]
[{"$f":"'MAQUETTE VIERGE'!D148","v":0},{"$f":"'MAQUETTE VIERGE'!G148","v":0},{"$f":"'MAQUETTE VIERGE'!K148","v":0},{"$f":"'MAQUETTE VIERGE'!L148","v":0},{"$f":"'MAQUETTE VIERGE'!M148","v":0},null,0,0,null,0,0,null,0,0,0]
[{"$f":"'MAQUETTE VIERGE'!D149","v":0},{"$f":"'MAQUETTE VIERGE'!G149","v":0},{"$f":"'MAQUETTE VIERGE'!K149","v":0},{"$f":"'MAQUETTE VIERGE'!L149","v":0},{"$f":"'MAQUETTE VIERGE'!M149","v":0},null,0,0,null,0,0,null,0,0,0]
[{"$f":"'MAQUETTE VIERGE'!D150","v":0},{"$f":"'MAQUETTE VIERGE'!G150","v":0},{"$f":"'MAQUETTE VIERGE'!K150","v":0},{"$f":"'MAQUETTE VIERGE'!L150","v":0},{"$f":"'MAQUETTE VIERGE'!M150","v":0},null,0,0,null,0,0,null,0,0,0]
[{"$f":"'MAQUETTE VIERGE'!D151","v":0},{"$f":"'MAQUETTE VIERGE'!G151","v":0},{"$f":"'MAQUETTE VIERGE'!K151","v":0},{"$f":"'MAQUETTE VIERGE'!L151","v":0},{"$f":"'MAQUETTE VIERGE'!M151","v":0},null,0,0,null,0,0,null,0,0,0]
[{"$f":"'MAQUETTE VIERGE'!D152","v":0},{"$f":"'MAQUETTE VIERGE'!G152","v":0},{"$f":"'MAQUETTE VIERGE'!K152","v":0},{"$f":"'MAQUETTE VIERGE'!L152","v":0},{"$f":"'MAQUETTE VIERGE'!M152","v":0},null,0,0,null,0,0,null,0,0,0]
[{"$f":"'MAQUETTE VIERGE'!D153","v":0},{"$f":"'MAQUETTE VIERGE'!G153","v":0},{"$f":"'MAQUETTE VIERGE'!K153","v":0},{"$f":"'MAQUETTE VIERGE'!L153","v":0},{"$f":"'MAQUETTE VIERGE'!M153","v":0},null,0,0,null,0,0,null,0,0,0]
[{"$f":"'MAQUETTE VIERGE'!D154","v":0},{"$f":"'MAQUETTE VIERGE'!G154","v":0},{"$f":"'MAQUETTE VIERGE'!K154","v":0},{"$f":"'MAQUETTE VIERGE'!L154","v":0},{"$f":"'MAQUETTE VIERGE'!M154","v":0},null,0,0,null,0,0,null,0,0,0]
[{"$f":"'MAQUETTE VIERGE'!D155","v":0},{"$f":"'MAQUETTE VIERGE'!G155","v":0},{"$f":"'MAQUETTE VIERGE'!K155","v":0},{"$f":"'MAQUETTE VIERGE'!L155","v":0},{"$f":"'MAQUETTE VIERGE'!M155","v":0},null,0,0,null,0,0,null,0,0,0]
[{"$f":"'MAQUETTE VIERGE'!D156","v":0},{"$f":"'MAQUETTE VIERGE'!G156","v":0},{"$f":"'MAQUETTE VIERGE'!K156","v":0},{"$f":"'MAQUETTE VIERGE'!L156","v":0},{"$f":"'MAQUETTE VIERGE'!M156","v":0},null,0,0,null,0,0,null,0,0,0]
[{"$f":"'MAQUETTE VIERGE'!D157","v":0},{"$f":"'MAQUETTE VIERGE'!G157","v":0},{"$f":"'MAQUETTE VIERGE'!K157","v":0},{"$f":"'MAQUETTE VIERGE'!L157","v":0},{"$f":"'MAQUETTE VIERGE'!M157","v":0},null,0,0,null,0,0,null,0,0,0]
[{"$f":"'MAQUETTE VIERGE'!D158","v":0},{"$f":"'MAQUETTE VIERGE'!G158","v":0},{"$f":"'MAQUETTE VIERGE'!K158","v":0},{"$f":"'MAQUETTE VIERGE'!L158","v":0},{"$f":"'MAQUETTE VIERGE'!M158","v":0},null,0,0,null,0,0,null,0,0,0]
[{"$f":"'MAQUETTE VIERGE'!D159","v":0},{"$f":"'MAQUETTE VIERGE'!G159","v":0},{"$f":"'MAQUETTE VIERGE'!K159","v":0},{"$f":"'MAQUETTE VIERGE'!L159","v":0},{"$f":"'MAQUETTE VIERGE'!M159","v":0},null,0,0,null,0,0,null,0,0,0]
[{"$f":"'MAQUETTE VIERGE'!D160","v":0},{"$f":"'MAQUETTE VIERGE'!G160","v":0},{"$f":"'MAQUETTE VIERGE'!K160","v":0},{"$f":"'MAQUETTE VIERGE'!L160","v":0},{"$f":"'MAQUETTE VIERGE'!M160","v":0},null,0,0,null,0,0,null,0,0,0]
[{"$f":"'MAQUETTE VIERGE'!D161","v":0},{"$f":"'MAQUETTE VIERGE'!G161","v":0},{"$f":"'MAQUETTE VIERGE'!K161","v":160},{"$f":"'MAQUETTE VIERGE'!L161","v":0},{"$f":"'MAQUETTE VIERGE'!M161","v":0},null,0,0,null,0,0,null,0,0,0]
[]
[null,null,null,null,null,null,null,null,null,null,null,null,null,"TOTAL \nFace à face",{"$f":"SUM(O183:O212)","v":194.5}]
[]
["Stage / Suivi","Valorisation du suivi pour un étudiant ou pour un groupe d'étudiants","Nombre d'étudiants ou nombre de groupes suiivis","Total heures de \nsuivi"]
[null,null,null,{"$f":"C217*B217","v":0}]
[null,null,null,{"$f":"C218*B218","v":0}]
[null,null,null,0]
[null,null,null,0]
[null,null,null,0]
[null,null,null,0]
[null,null,null,0]
[null,null,null,0]
[null,null,null,0]
[null,null,null,0]
[null,null,null,0]
[null,null,null,0]
[null,null,null,0]
[null,null,null,0]
[null,null,null,0]
[]
[null,null,"TOTAL Stage/Suivi",{"$f":"SUM(D217:D231)","v":0},null,null,null,null,null,null,null,null,null,"TOTAL \nGénéral",{"$f":"O214+D233+B253","v":194.5}]
[]
[]
["Heures de référentiel / Responsabilité diplôme","Valorisation "]
[]
[]
[]
[]
[]
[]
[]
[]
[]
[]
[]
[]
[]
[]
[]
[]
["TOTAL Référentiel",{"$f":"SUM(B237:B251)","v":0}]
[]
[]
[]
[]
[]
[]
[]
[{"$f":"'MAQUETTE VIERGE'!$A$186","v":"Semestre 10"}]
[]
["MAQUETTE",null,null,null,null,"Conversion en heures équivalent TD"]
["Unités d'Enseignement (UE)","Eléments constitutifs d'UE (ECUE)","Volumes horaires prévisionnels\n (temps étudiants)",null,null,"Heures prévisionnelles CM",null,null,"Heures prévisionnelles TD",null,null,"Heures prévisionnelles TP",null,null,"TOTAL"]
["Intitulés","Intitulés",null,null,null,"Nombre de groupes de CM","Heures d'enseignement CM","Heures d'enseignement équivalent TD","Nombre de groupes de TD","Heures d'enseignement TD","Heures d'enseignement équivalent TD","Nombre de groupes de TP","Heures d'enseignement TP","Heures d'enseignement équivalent TD"]
[null,null,"Enseignements"]
[null,null,"CM","TD","TP",null,"= nb groupe CM x heures CM maquette","= heures d'enseignement CM * 1,5",null,"= nb groupe TD x heures TD maquette","= heures d'enseignement TD * 1",null,"= nb groupe TD x heures TD maquette","= heures d'enseignement TD * 0,87 (1h TP équivaut en moyenne à 0,87h eqTD à l'UJM)"]
[{"$f":"'MAQUETTE VIERGE'!D193","v":"UE1 : Théories de l’enquête (cours fondamentaux)"},{"$f":"'MAQUETTE VIERGE'!G193","v":0},{"$f":"'MAQUETTE VIERGE'!K193","v":0},{"$f":"'MAQUETTE VIERGE'!L193","v":0},{"$f":"'MAQUETTE VIERGE'!M193","v":0},null,{"$f":"F268*C268","v":0},{"$f":"G268*1.5","v":0},null,{"$f":"I268*D268","v":0},{"$f":"J268*1","v":0},null,{"$f":"L268*E268","v":0},{"$f":"M268*0.87","v":0},{"$f":"H268+K268+N268","v":0}]
[{"$f":"'MAQUETTE VIERGE'!D194","v":0},{"$f":"'MAQUETTE VIERGE'!G194","v":"Gestion du risque et construction des problèmes publics"},{"$f":"'MAQUETTE VIERGE'!K194","v":21},{"$f":"'MAQUETTE VIERGE'!L194","v":0},{"$f":"'MAQUETTE VIERGE'!M194","v":0},1,{"$f":"F269*C269","v":21},{"$f":"G269*1.5","v":31.5},null,{"$f":"I269*D269","v":0},{"$f":"J269*1","v":0},null,{"$f":"L269*E269","v":0},{"$f":"M269*0.87","v":0},{"$f":"H269+K269+N269","v":31.5}]
[{"$f":"'MAQUETTE VIERGE'!D195","v":0},{"$f":"'MAQUETTE VIERGE'!G195","v":"Enquêtes multisituées et terrains internationaux (Asie, Afrique, Amérique)"},{"$f":"'MAQUETTE VIERGE'!K195","v":21},{"$f":"'MAQUETTE VIERGE'!L195","v":0},{"$f":"'MAQUETTE VIERGE'!M195","v":0},1,21,31.5,null,0,0,null,0,0,31.5]
[{"$f":"'MAQUETTE VIERGE'!D196","v":"UE2 : Approndissement par la recherche"},{"$f":"'MAQUETTE VIERGE'!G196","v":0},{"$f":"'MAQUETTE VIERGE'!K196","v":0},{"$f":"'MAQUETTE VIERGE'!L196","v":0},{"$f":"'MAQUETTE VIERGE'!M196","v":0},null,0,0,null,0,0,null,0,0,0]
[{"$f":"'MAQUETTE VIERGE'!D197","v":0},{"$f":"'MAQUETTE VIERGE'!G197","v":"Séminaire dans les équipes du Centre Max Weber"},{"$f":"'MAQUETTE VIERGE'!K197","v":0},{"$f":"'MAQUETTE VIERGE'!L197","v":15},{"$f":"'MAQUETTE VIERGE'!M197","v":0},null,0,0,1,15,15,null,0,0,15]
[{"$f":"'MAQUETTE VIERGE'!D198","v":0},{"$f":"'MAQUETTE VIERGE'!G198","v":"Suivi de terrain et mémoire 2 : Ecrire et soutenir un mémoire"},{"$f":"'MAQUETTE VIERGE'!K198","v":0},{"$f":"'MAQUETTE VIERGE'!L198","v":21},{"$f":"'MAQUETTE VIERGE'!M198","v":0},null,0,0,1,21,21,null,0,0,21]
[{"$f":"'MAQUETTE VIERGE'!D199","v":"UE3 : Formes et outils de l'enquête"},{"$f":"'MAQUETTE VIERGE'!G199","v":"2 ateliers au choix (parmi les 3)"},{"$f":"'MAQUETTE VIERGE'!K199","v":0},{"$f":"'MAQUETTE VIERGE'!L199","v":0},{"$f":"'MAQUETTE VIERGE'!M199","v":0},null,0,0,null,0,0,null,0,0,0]
[{"$f":"'MAQUETTE VIERGE'!D200","v":0},{"$f":"'MAQUETTE VIERGE'!G200","v":"Enquête et images (photographie et film)"},{"$f":"'MAQUETTE VIERGE'!K200","v":0},{"$f":"'MAQUETTE VIERGE'!L200","v":21},{"$f":"'MAQUETTE VIERGE'!M200","v":0},null,0,0,1,21,21,null,0,0,21]
[{"$f":"'MAQUETTE VIERGE'!D201","v":0},{"$f":"'MAQUETTE VIERGE'!G201","v":"Enquêtes d'opinion (sondage, entretien collectif, focus groupe)"},{"$f":"'MAQUETTE VIERGE'!K201","v":0},{"$f":"'MAQUETTE VIERGE'!L201","v":21},{"$f":"'MAQUETTE VIERGE'!M201","v":0},null,0,0,1,21,21,null,0,0,21]
[{"$f":"'MAQUETTE VIERGE'!D202","v":0},{"$f":"'MAQUETTE VIERGE'!G202","v":"Cartographie et données sociales "},{"$f":"'MAQUETTE VIERGE'!K202","v":0},{"$f":"'MAQUETTE VIERGE'!L202","v":21},{"$f":"'MAQUETTE VIERGE'!M202","v":0},null,0,0,1,21,21,null,0,0,21]
[{"$f":"'MAQUETTE VIERGE'!D203","v":"UE4 : Pratique de l'enquête et professionnalisation"},{"$f":"'MAQUETTE VIERGE'!G203","v":0},{"$f":"'MAQUETTE VIERGE'!K203","v":0},{"$f":"'MAQUETTE VIERGE'!L203","v":0},{"$f":"'MAQUETTE VIERGE'!M203","v":0},null,0,0,null,0,0,null,0,0,0]
[{"$f":"'MAQUETTE VIERGE'!D204","v":0},{"$f":"'MAQUETTE VIERGE'!G204","v":"Stage"},{"$f":"'MAQUETTE VIERGE'!K204","v":0},{"$f":"'MAQUETTE VIERGE'!L204","v":0},{"$f":"'MAQUETTE VIERGE'!M204","v":0},null,0,0,null,0,0,null,0,0,0]
[{"$f":"'MAQUETTE VIERGE'!D205","v":0},{"$f":"'MAQUETTE VIERGE'!G205","v":0},{"$f":"'MAQUETTE VIERGE'!K205","v":0},{"$f":"'MAQUETTE VIERGE'!L205","v":0},{"$f":"'MAQUETTE VIERGE'!M205","v":0},null,0,0,null,0,0,null,0,0,0]
[{"$f":"'MAQUETTE VIERGE'!D206","v":0},{"$f":"'MAQUETTE VIERGE'!G206","v":0},{"$f":"'MAQUETTE VIERGE'!K206","v":0},{"$f":"'MAQUETTE VIERGE'!L206","v":0},{"$f":"'MAQUETTE VIERGE'!M206","v":0},null,0,0,null,0,0,null,0,0,0]
[{"$f":"'MAQUETTE VIERGE'!D207","v":0},{"$f":"'MAQUETTE VIERGE'!G207","v":0},{"$f":"'MAQUETTE VIERGE'!K207","v":0},{"$f":"'MAQUETTE VIERGE'!L207","v":0},{"$f":"'MAQUETTE VIERGE'!M207","v":0},null,0,0,null,0,0,null,0,0,0]
[{"$f":"'MAQUETTE VIERGE'!D208","v":0},{"$f":"'MAQUETTE VIERGE'!G208","v":0},{"$f":"'MAQUETTE VIERGE'!K208","v":0},{"$f":"'MAQUETTE VIERGE'!L208","v":0},{"$f":"'MAQUETTE VIERGE'!M208","v":0},null,0,0,null,0,0,null,0,0,0]
[{"$f":"'MAQUETTE VIERGE'!D209","v":0},{"$f":"'MAQUETTE VIERGE'!G209","v":0},{"$f":"'MAQUETTE VIERGE'!K209","v":0},{"$f":"'MAQUETTE VIERGE'!L209","v":0},{"$f":"'MAQUETTE VIERGE'!M209","v":0},null,0,0,null,0,0,null,0,0,0]
[{"$f":"'MAQUETTE VIERGE'!D210","v":0},{"$f":"'MAQUETTE VIERGE'!G210","v":0},{"$f":"'MAQUETTE VIERGE'!K210","v":0},{"$f":"'MAQUETTE VIERGE'!L210","v":0},{"$f":"'MAQUETTE VIERGE'!M210","v":0},null,0,0,null,0,0,null,0,0,0]
[{"$f":"'MAQUETTE VIERGE'!D211","v":0},{"$f":"'MAQUETTE VIERGE'!G211","v":0},{"$f":"'MAQUETTE VIERGE'!K211","v":0},{"$f":"'MAQUETTE VIERGE'!L211","v":0},{"$f":"'MAQUETTE VIERGE'!M211","v":0},null,0,0,null,0,0,null,0,0,0]
[{"$f":"'MAQUETTE VIERGE'!D212","v":0},{"$f":"'MAQUETTE VIERGE'!G212","v":0},{"$f":"'MAQUETTE VIERGE'!K212","v":0},{"$f":"'MAQUETTE VIERGE'!L212","v":0},{"$f":"'MAQUETTE VIERGE'!M212","v":0},null,0,0,null,0,0,null,0,0,0]
[{"$f":"'MAQUETTE VIERGE'!D213","v":0},{"$f":"'MAQUETTE VIERGE'!G213","v":0},{"$f":"'MAQUETTE VIERGE'!K213","v":0},{"$f":"'MAQUETTE VIERGE'!L213","v":0},{"$f":"'MAQUETTE VIERGE'!M213","v":0},null,0,0,null,0,0,null,0,0,0]
[{"$f":"'MAQUETTE VIERGE'!D214","v":0},{"$f":"'MAQUETTE VIERGE'!G214","v":0},{"$f":"'MAQUETTE VIERGE'!K214","v":0},{"$f":"'MAQUETTE VIERGE'!L214","v":0},{"$f":"'MAQUETTE VIERGE'!M214","v":0},null,0,0,null,0,0,null,0,0,0]
[{"$f":"'MAQUETTE VIERGE'!D215","v":0},{"$f":"'MAQUETTE VIERGE'!G215","v":0},{"$f":"'MAQUETTE VIERGE'!K215","v":0},{"$f":"'MAQUETTE VIERGE'!L215","v":0},{"$f":"'MAQUETTE VIERGE'!M215","v":0},null,0,0,null,0,0,null,0,0,0]
[{"$f":"'MAQUETTE VIERGE'!D216","v":0},{"$f":"'MAQUETTE VIERGE'!G216","v":0},{"$f":"'MAQUETTE VIERGE'!K216","v":0},{"$f":"'MAQUETTE VIERGE'!L216","v":0},{"$f":"'MAQUETTE VIERGE'!M216","v":0},null,0,0,null,0,0,null,0,0,0]
[{"$f":"'MAQUETTE VIERGE'!D217","v":0},{"$f":"'MAQUETTE VIERGE'!G217","v":0},{"$f":"'MAQUETTE VIERGE'!K217","v":0},{"$f":"'MAQUETTE VIERGE'!L217","v":0},{"$f":"'MAQUETTE VIERGE'!M217","v":0},null,0,0,null,0,0,null,0,0,0]
[{"$f":"'MAQUETTE VIERGE'!D218","v":0},{"$f":"'MAQUETTE VIERGE'!G218","v":0},{"$f":"'MAQUETTE VIERGE'!K218","v":0},{"$f":"'MAQUETTE VIERGE'!L218","v":0},{"$f":"'MAQUETTE VIERGE'!M218","v":0},null,0,0,null,0,0,null,0,0,0]
[{"$f":"'MAQUETTE VIERGE'!D219","v":0},{"$f":"'MAQUETTE VIERGE'!G219","v":0},{"$f":"'MAQUETTE VIERGE'!K219","v":0},{"$f":"'MAQUETTE VIERGE'!L219","v":0},{"$f":"'MAQUETTE VIERGE'!M219","v":0},null,0,0,null,0,0,null,0,0,0]
[{"$f":"'MAQUETTE VIERGE'!D220","v":0},{"$f":"'MAQUETTE VIERGE'!G220","v":0},{"$f":"'MAQUETTE VIERGE'!K220","v":0},{"$f":"'MAQUETTE VIERGE'!L220","v":0},{"$f":"'MAQUETTE VIERGE'!M220","v":0},null,0,0,null,0,0,null,0,0,0]
[{"$f":"'MAQUETTE VIERGE'!D221","v":0},{"$f":"'MAQUETTE VIERGE'!G221","v":0},{"$f":"'MAQUETTE VIERGE'!K221","v":0},{"$f":"'MAQUETTE VIERGE'!L221","v":0},{"$f":"'MAQUETTE VIERGE'!M221","v":0},null,0,0,null,0,0,null,0,0,0]
[{"$f":"'MAQUETTE VIERGE'!D222","v":0},{"$f":"'MAQUETTE VIERGE'!G222","v":0},{"$f":"'MAQUETTE VIERGE'!K222","v":120},{"$f":"'MAQUETTE VIERGE'!L222","v":0},{"$f":"'MAQUETTE VIERGE'!M222","v":0},null,0,0,null,0,0,null,0,0,0]
[]
[null,null,null,null,null,null,null,null,null,null,null,null,null,"TOTAL \nFace à face",{"$f":"SUM(O268:O297)","v":162}]
[]
["Stage / Suivi","Valorisation du suivi pour un étudiant ou pour un groupe d'étudiants","Nombre d'étudiants ou nombre de groupes suiivis","Total heures de \nsuivi"]
[null,null,null,{"$f":"C302*B302","v":0}]
[null,null,null,{"$f":"C303*B303","v":0}]
[null,null,null,0]
[null,null,null,0]
[null,null,null,0]
[null,null,null,0]
[null,null,null,0]
[null,null,null,0]
[null,null,null,0]
[null,null,null,0]
[null,null,null,0]
[null,null,null,0]
[null,null,null,0]
[null,null,null,0]
[null,null,null,0]
[]
[null,null,"TOTAL Stage/Suivi",{"$f":"SUM(D302:D316)","v":0},null,null,null,null,null,null,null,null,null,"TOTAL \nGénéral",{"$f":"O299+D318+B338","v":162}]
[]
[]
["Heures de référentiel / Responsabilité diplôme","Valorisation "]
[]
[]
[]
[]
[]
[]
[]
[]
[]
[]
[]
[]
[]
[]
[]
[]
["TOTAL Référentiel",{"$f":"SUM(B322:B336)","v":0}]

{"sheet":"MUTUALISATIONS","index":3,"n_rows":25,"n_cols":2,"rows_kept":25,"cut":false,"hidden":false,"merged":[]}
[]
[]
[]
[]
[]
["Eléments mutualisés ou potentiellement mutualisables"]
["SEMESTRE 7 : Mutualisé avec le Master PSDT FI"]
[{"$f":"'ANNEXE FINANCIERE'!B17","v":"Inégalités et changement social"},{"$f":"'ANNEXE FINANCIERE'!O17","v":31.5}]
[{"$f":"'ANNEXE FINANCIERE'!B18","v":"Enquêtes sociologiques et intervention "},{"$f":"'ANNEXE FINANCIERE'!O18","v":31.5}]
[{"$f":"'ANNEXE FINANCIERE'!B20","v":"Séminaire Recherche & Action"},{"$f":"'ANNEXE FINANCIERE'!O20","v":21}]
[{"$f":"'ANNEXE FINANCIERE'!B21","v":"Séminaire Lutte contre les discriminations"},{"$f":"'ANNEXE FINANCIERE'!O21","v":21}]
[{"$f":"'ANNEXE FINANCIERE'!B22","v":"Exposer la recherche"},{"$f":"'ANNEXE FINANCIERE'!O22","v":12}]
[{"$f":"'ANNEXE FINANCIERE'!B24","v":"Statistiques ethnographiques"},{"$f":"'ANNEXE FINANCIERE'!O24","v":21}]
[{"$f":"'ANNEXE FINANCIERE'!B25","v":"Ethnographie : immersion et description"},{"$f":"'ANNEXE FINANCIERE'!O25","v":21}]
[{"$f":"'ANNEXE FINANCIERE'!B29","v":"Approche des organisations"},{"$f":"'ANNEXE FINANCIERE'!O29","v":12}]
["Total heures mutualisées S7 :",{"$f":"SUM(B8:B15)","v":171}]
["SEMESTRE 8 : Mutualisé avec le Master PSDT FI"]
[{"$f":"'ANNEXE FINANCIERE'!B101","v":"Construction des problèmes publics "},{"$f":"'ANNEXE FINANCIERE'!O101","v":31.5}]
[{"$f":"'ANNEXE FINANCIERE'!B102","v":"Formes et régimes de l'enquête "},{"$f":"'ANNEXE FINANCIERE'!O102","v":31.5}]
[{"$f":"'ANNEXE FINANCIERE'!B107","v":"Statistiques ethnographiques"},{"$f":"'ANNEXE FINANCIERE'!O107","v":21}]
[{"$f":"'ANNEXE FINANCIERE'!B111","v":"Fonctionnement des institutions*"},{"$f":"'ANNEXE FINANCIERE'!O111","v":25.5}]
["Total heures mutualisées S8 :",{"$f":"SUM(B18:B21)","v":109.5}]
["SEMESTRE 9 : Mutualisé avec le Master PSDT FI"]
[{"$f":"'ANNEXE FINANCIERE'!B184","v":"Étudier les inégalités sociales  "},{"$f":"'ANNEXE FINANCIERE'!O184","v":31.5}]
["Total heures mutualisées S9 :",{"$f":"SUM(B24)","v":31.5}]

{"sheet":"extraction base OF","index":4,"n_rows":88,"n_cols":14,"rows_kept":88,"cut":false,"hidden":true,"merged":[]}
["DIPLÔME","MENTION / INTITULE","PARCOURS","NUMERO  D'ACCREDITATION","CO-ACCREDITATION","NUMERO RNCP","DATE 1ère PRESENTATION  CFVU","MAQUETTE INITIALE","DATE  DERNIERE PRESENTATION  CFVU","MAQUETTE DERNIERE VERSION","FORMATION  INITIALE OU CONTINUE","CONTRAT  D'APPRENTISSAGE","CONTRAT PRO","STAGE"]
["master","arts","administration et gestion de la musique","20160566","Partenariat IAE (master MAE) et CNSMPD.","34834","08/04/2022","MAQUETTES 2022-2025\\ALL MASTER arts parcours administration et gestion de la musique.xlsm","-","non concerné","initiale","non","non","oui"]
["master","arts","création contemporaine et nouvelles technologies","20160566","-","34834","08/04/2022","MAQUETTES 2022-2025\\ALL MASTER arts parcours création contemporaine et nouvelles technologies.xlsm","-","non concerné","initiale","non","non","oui"]
["master","arts","création et recherche en arts plastiques","20160566","ENSASE","34834","08/04/2022","MAQUETTES 2022-2025\\ALL MASTER arts parcours création et recherche en arts plastiques.xlsm","-","non concerné","initiale","non","non","oui"]
["master","arts","édition d’art et livre d’artiste","20160566","-","34834","08/04/2022","MAQUETTES 2022-2025\\ALL MASTER arts parcours édition d’art livre d’artiste.xlsm","-","non concerné","initiale","non","non","oui"]
["master","arts","musique et musicologie","20160566","-","34834","08/04/2022","MAQUETTES 2022-2025\\ALL MASTER arts parcours musique et musicologie.xlsm","-","non concerné","initiale","non","non","oui"]
["master","arts","sciences de l’art","20160566","-","34834","08/04/2022","MAQUETTES 2022-2025\\ALL MASTER arts parcours sciences de l'art.xlsm","-","non concerné","initiale","non","non","oui"]
["master","design","métiers et industrie d'art","20160567","ENMSE, ESADSE","34439","08/04/2022","MAQUETTES 2022-2025\\ALL MASTER design parcours métiers et industries d'art.xlsx","-","non concerné","initiale","non","non","oui"]
["master","didactique des langues","FLE, ingénierie des formations en langues","20160396","-","34841","08/04/2022","MAQUETTES 2022-2025\\ALL MASTER didactique des langues parcours FLE ingénierie des formations en langue.xlsm","-","non concerné","initiale","non","non","oui"]
["master","didactique des langues","sociodidactique, valorisation de la diversité linguistique et culturelle","20160396","-","34841","08/04/2022","MAQUETTES 2022-2025\\ALL MASTER didactique des langues parcours sociodidactique, valorisation de la diversité linguistique et culturelle.xlsm","-","non concerné","initiale","non","non","oui"]
["master","langues, littératures et civilisations étrangères et régionales","cultures et interculturalité des médias dans les mondes espagnol et latino-américain","20160399","Lyon 2, ENS","31503","08/04/2022","MAQUETTES 2022-2025\\ALL MASTER LLCER parcours cultures et interculturalité des médias dans les mondes espagnol et latino-américain.xlsm","-","non concerné","initiale","non","non","oui"]
["master","langues, littératures et civilisations étrangères et régionales","études anglophones","20160399","Lyon 2, Lyon 3, ENS Lyon","31503","08/04/2022","MAQUETTES 2022-2025\\ALL MASTER langues littératures et civilisations étrangères et régionales parcours études anglophones.xlsm","-","non concerné","initiale","non","non","oui"]
["master","lettres","art dramatique","20141581","Partenariat avec l'Ecole de la Comédie et l'Ens de Lyon","24481","08/04/2022","MAQUETTES 2022-2025\\ALL MASTER lettres parcours art dramatique.xlsm","-","non concerné","initiale","non","non","non"]
["master","lettres","lettres modernes (dont M2 Lettres et études culturelles en ligne)","20160400","Lyon 2, Lyon 3, ENS Lyon","34268","08/04/2022","MAQUETTES 2022-2025\\ALL MASTER lettres parcours lettres modernes.xlsm","-","non concerné","initiale","non","non","oui"]
["master","lettres","métiers des institutions culturelles","20160400","Lyon 2, Lyon 3 et ENS","34268","08/04/2022","MAQUETTES 2022-2025\\ALL MASTER lettres parcours métiers des institutions culturelles.xlsm","-","non concerné","initiale","non","non","oui"]
["master","traduction et interprétation","métiers de la rédaction et de la traduction","20160404","-","34116","08/04/2022","MAQUETTES 2022-2025\\ALL MASTER traduction et interprétation parcours métiers de la rédaction et de la traduction.xlsm","-","non concerné","initiale","non","non","oui"]
["master","science politique","enjeux sociaux et politiques de santé","20160449","Lyon 2, ENS Lyon","31506","08/04/2022","MAQUETTES 2022-2025\\DEPT MASTER science politique parcours enjeux sociaux et politiques de santé.xlsm","-","non concerné","initiale, continue","non","non","oui"]
["master","science politique","gouvernance et politiques urbaines alternatives (Altervilles)","20160449","-","31506","08/04/2022","MAQUETTES 2022-2025\\DEPT MASTER science politique parcours gouvernance et politiques urbaines alternatives.xlsm","-","non concerné","initiale, continue","non","non","non"]
["master","science politique","politiques européennes - voisinages de l'UE (AlterEurope)","20160449","Lyon 2, ENS Lyon","31506","08/04/2022","MAQUETTES 2022-2025\\DEPT MASTER science politique parcours politiques européennes-voisinages de l'UE.xlsm","-","non concerné","initiale, continue","non","non","non"]
["master","droit des affaires","droit et affaires santé","20160407","-","34127","08/04/2022","MAQUETTES 2022-2025\\DROIT MASTER droit des affaires parcours droit et affaires santé.xlsm","-","non concerné","initiale, continue","oui","oui","oui"]
["master","droit des affaires","droit et entreprise, juriste d'affaires","20160407","-","34127","08/04/2022","MAQUETTES 2022-2025\\DROIT MASTER droit des affaires parcours droit et entreprise juriste d'affaires.xlsm","-","non concerné","initiale, continue","oui","oui","oui"]
["master","droit des affaires","ressources humaines de l'entreprise et droit social","20160407","-","34127","08/04/2022","MAQUETTES 2022-2025\\DROIT MASTER droit des affaires parcours ressources humaines de l'entreprise et droit social.xlsm","-","non concerné","initiale","oui","oui","oui"]
["master","droit public","acteurs publics","20160409","-","34084","08/04/2022","MAQUETTES 2022-2025\\DROIT MASTER droit public parcours acteurs publics.xlsm","-","non concerné","initiale","non","non","oui"]
["master","droit public","contrats publics","20160409","-","34084","08/04/2022","MAQUETTES 2022-2025\\DROIT MASTER droit public parcours contrats publics.xlsm","-","non concerné","initiale, continue","oui","oui","oui"]
["master","droit public","droits international européen et comparé (DIEC)","20160409","-","34084","08/04/2022","MAQUETTES 2022-2025\\DROIT MASTER droit public parcours droits international européens et comparé.xlsm","-","non concerné","initiale","non","non","oui"]
["master","justice, procès et procédures","civil","20160414","-","34098","08/04/2022","MAQUETTES 2022-2025\\DROIT MASTER justice procès procédures parcours civil.xlsm","-","non concerné","initiale","non","non","oui"]
["master","justice, procès et procédures","pénal","20160414","-","34098","08/04/2022","MAQUETTES 2022-2025\\DROIT MASTER justice procès procédure parcours pénal.xlsm","-","non concerné","initiale","non","non","oui"]
["master","analyse et politique économique","conseil en développement territorial","20160406","-","34424","08/04/2022","MAQUETTES 2022-2025\\EE MASTER analyse et politique économique parcours conseil en développement territorial.xlsm","-","non concerné","initiale, continue","oui","oui","oui"]
["master","analyse et politique économique","data science & management de l'Innovation","20160406","-","34424","08/04/2022","MAQUETTES 2022-2025\\EE MASTER analyse et politique économique parcours data science & management de l'Innovation.xlsm","-","non concerné","initiale, continue","non","non","oui"]
["master","analyse et politique économique","political engineering","20160406","-","34424","08/04/2022","MAQUETTES 2022-2025\\EE MASTER analyse et politique économique parours political engineering.xlsm","-","non concerné","initiale, continue","non","non","oui"]
["master","acoustique","bioacoustique",null,"ECL, INSA, ENTPE","31469","08/04/2022","MAQUETTES 2022-2025\\FST MASTER sciences du vivant parcours bioacoustique.xlsm","-","non concerné","initiale","non","non","oui"]
["master","chimie et sciences des matériaux","plasturgie","20160445","ENSM St-Etienne, EC Lyon, Lyon1, Institut Mines-Télécom","34112","08/04/2022","MAQUETTES 2022-2025\\FST MASTER chimie et sciences des matériaux parcours plasturgie.xlsm","-","non concerné","initiale, continue","oui","oui","oui"]
["master","électronique, énergie électrique, automatique (EEA CPI)","CPI","20160461",null,"34117","08/04/2022","MAQUETTES 2022-2025\\FST MASTER électronique énergie électrique automatique parcours CPI.xlsm","-","non concerné","initiale","non","non","oui"]
["master","informatique","cyber-physical social systems","20160459","Lyon 1, Ecole Centrale de Lyon,  ENS lyon, Lyon 2, Ecole des Mines de St-Etienne","34126","08/04/2022","MAQUETTES 2022-2025\\FST MASTER informatique parcours cyber-physical social systems.xlsm","-","non concerné","initiale","non","non","oui"]
["master","informatique","données et systèmes connectés","20160459","Lyon 1 , Ecole Centrale de Lyon , ENS lyon , Lyon 2 , Ecole des Mines de St-Etienne","34126","08/04/2022","MAQUETTES 2022-2025\\FST MASTER informatique parcours données et systèmes connectés.xlsm","-","non concerné","initiale, continue","oui","oui","oui"]
["master","informatique","machine learning data mining","20160459","Lyon 1 , Ecole Centrale de Lyon ,  ENS lyon , Lyon 2 , Ecole des Mines de St Etienne","34126","08/04/2022","MAQUETTES 2022-2025\\FST MASTER informatique parcours machine learning data mining.xlsm","-","non concerné","initiale","non","non","oui"]
["master","mathématiques appliquées, statistiques","mathématiques en action","20160466","ENSM St-Etienne, EC Lyon, Lyon1, ENS Lyon, Institut Mines-Telecom","34039","08/04/2022","MAQUETTES 2022-2025\\FST MASTER mathématiques appliquées, statistiques parcours mathématiques en action.xlsm","-","non concerné","initiale","non","non","oui"]
["master","OIVM - optique, image, vision, multimédia","advanced imaging and material appearance (AIMA)","20160571","ENSM St-Etienne, EC Lyon, Institut Mines-Telecom","23345","08/04/2022","MAQUETTES 2022-2025\\FST MASTER OIVM parcours AIMA.xlsm","-","non concerné","initiale, continue","non","non","oui"]
["master","OIVM - optique, image, vision, multimédia","computational colour and spectral imaging (COSI 2)","20160571","ENSM St-Etienne, EC Lyon, Institut Mines-Telecom","23345","08/04/2022","MAQUETTES 2022-2025\\FST MASTER OIVM parcours COSI 2.xlsm","-","non concerné","initiale","non","non","non"]
["master","OIVM - optique, image, vision, multimédia","photonics engineering","20160571","ENSM St-Etienne, EC Lyon, Institut Mines-Telecom","23345","08/04/2022","MAQUETTES 2022-2025\\FST MASTER OIVM parcours photonics engineering.xlsm","-","non concerné","initiale, continue","non","non","oui"]
["master","OIVM - optique, image, vision, multimédia","photonics for security, reliability and safety (PSRS)","20160571","ENSM St-Etienne, EC Lyon, Institut Mines-Telecom","23345","08/04/2022","MAQUETTES 2022-2025\\FST MASTER OIVM parcours PSRS.xlsm","-","non concerné","initiale","non","non","oui"]
["master","OIVM - optique, image, vision, multimédia","radiation and its Effects on micro electronics and photonics technologies (RADMEP)","20160571","ENSM St-Etienne, EC Lyon, Institut Mines-Telecom","23345","08/04/2022","MAQUETTES 2022-2025\\FST MASTER OIVM parcours RADMEP.xlsm","-","non concerné","initiale","non","non","non"]
["master","OIVM - optique, image, vision, multimédia","science in imaging and light in extended reality (IMLEX)","20160571","ENSM St-Etienne, EC Lyon, Institut Mines-Telecom","23345","08/04/2022","MAQUETTES 2022-2025\\FST MASTER OIVM parcours IMLEX.xlsm","-","non concerné","initiale","non","non","non"]
["master","sciences du vivant","bioacoustique","20160573","-","34822","08/04/2022","MAQUETTES 2022-2025\\FST MASTER sciences du vivant parcours bioacoustique.xlsm","-","non concerné","initiale","non","non","non"]
["master","sciences du vivant","écologie chimique","20160573","-","34822","08/04/2022","MAQUETTES 2022-2025\\FST MASTER sciences du vivant parcours écologie chimique.xlsm","-","non concerné","initiale","non","non","oui"]
["master","sciences du vivant","écologie et éthologie","20160573","-","34822","08/04/2022","MAQUETTES 2022-2025\\FST MASTER sciences du vivant parcours écologie et éthologie.xlsm","-","non concerné","initiale","non","non","oui"]
["master","sciences et techniques des activités physiques et sportives (STAPS) : entraînement et optimisation de la performance sportive (EOP)","évaluation et ingénierie de la performance sportive (EIPS)","20160493","Lyon 1","32169","08/04/2022","MAQUETTES 2022-2025\\FST MASTER STAPS EOPS parcours évaluation et ingénierie de la performance sportive (EIPS).xlsm","-","non concerné","initiale, continue","non","non","oui"]
["master","sciences et techniques des activités physiques et sportives (STAPS) : entraînement et optimisation de la performance sportive (EOP)","health performance science (HPS)","20160493","-","32169","08/04/2022","MAQUETTES 2022-2025\\FST MASTER STAPS EOPS parcours health and performance science.xlsm","-","non concerné","initiale","non","non","oui"]
["master","comptabilité-contrôle-audit","-","20160540","-","35991","08/04/2022","MAQUETTES 2022-2025\\IAE MASTER comptabilité contrôle audit.xlsm","-","non concerné","initiale, continue","oui","oui","oui"]
["master","contrôle de gestion et audit organisationnel","contrôle de gestion et systèmes d’information (CGSI)","20160541","-","35918","08/04/2022","MAQUETTES 2022-2025\\IAE MASTER contrôle de gestion et audit organisationnel parcours contrôle de gestion et systèmes d’information.xlsm","-","non concerné","initiale, continue","oui","oui","oui"]
["master","design","prospective design","20160567","ENSM St-Etienne, Institut Mines-Telecom, ESAD St-Etienne","34439","08/04/2022","MAQUETTES 2022-2025\\IAE MASTER design parcours prospective design.xlsm","-","non concerné","initiale, continue","non","non","oui"]
["master","entrepreneuriat et management de projets","entrepreneuriat",null,"Lyon 3","35922","08/04/2022","MAQUETTES 2022-2025\\IAE MASTER entrepreneuriat et management de projets parcours entrepreneuriat.xlsm","-","non concerné","initiale, continue","oui","oui","oui"]
["master","entrepreneuriat et management de projets","management de projets",null,"Lyon 3","35922","08/04/2022","MAQUETTES 2022-2025\\IAE MASTER entrepreneuriat et management de projets parcours management de projets.xlsm","-","non concerné","initiale, continue","oui","oui","non"]
["master","finance","conseils et ingénierie financière",null,"-","35913","08/04/2022","MAQUETTES 2022-2025\\IAE MASTER finance parcours conseils et ingénierie financière.xlsm","-","non concerné","initiale","non","non","oui"]
["master","information, communication","stratégies de communication, management et marketing digital","20160434","Lyon1, ENSSIB Lyon, Lyon2","31496","08/04/2022","MAQUETTES 2022-2025\\IAE MASTER information communication parcours stratégies de communication, management et marketing digital.xlsm","-","non concerné","initiale, continue","oui","oui","non"]
["master","management","management des organisations sanitaires et sociales (MOSS)","20160556","-","35917","08/04/2022","MAQUETTES 2022-2025\\IAE MASTER management parcours management des organisations sanitaires et sociales.xlsm","-","non concerné","initiale, continue","oui","oui","oui"]
["master","management","management du commerce et de la distribution","20160556","-","35917","08/04/2022","MAQUETTES 2022-2025\\IAE MASTER management parcours management du commerce et de la distribution.xlsm","-","non concerné","initiale, continue","oui","oui","oui"]
["master","management","management international","20160556","-","35917","08/04/2022","MAQUETTES 2022-2025\\IAE MASTER management parcours management international.xlsm","-","non concerné","initiale, continue","non","non","oui"]
["master","management et administration des entreprises","management général - double compétence","20160558","Lyon 3","35916","08/04/2022","MAQUETTES 2022-2025\\IAE MASTER management des administrations et des entreprises parcours management général - double compétence.xlsm","-","non concerné","initiale, continue","oui","oui","oui"]
["master","marketing, vente","marketing et stratégie d'innovation",null,"-","35907","08/04/2022","MAQUETTES 2022-2025\\IAE MASTER marketing vente parcours marketing et stratégie d'innovation.xlsm","-","non concerné","initiale, continue","non","non","oui"]
["master","monnaie, banque, finance, assurance","banque et finance","20160417","Lyon 2","34034","08/04/2022","MAQUETTES 2022-2025\\IAE MASTER monnaie banque finance assurance parcours banque finance.xlsm","-","non concerné","initiale, continue","oui","oui","oui"]
["master","monnaie, banque, finance, assurance","chargé d'affaires en banque : patrimoine et entreprises","20160417","Lyon 2 , ENS Lyon","34034","08/04/2022","MAQUETTES 2022-2025\\IAE MASTER monnaie banque finance assurance parcours chargé d'affaires en banque patrimoine et entreprises.xlsm","-","non concerné","initiale, continue","oui","oui","oui"]
["master","ingénierie de la santé","-","20160465","ENSM St-Etienne, EC Lyon, Lyon 1, Institut Mines-Telecom","34075","08/04/2022","MAQUETTES 2022-2025\\MEDECINE MASTER ingénierie de la santé.xlsm","-","non concerné","initiale, continue","oui","oui","oui"]
["master","ingénierie de la santé","bioingénierie en santé","20160465","ENSM St-Etienne, EC Lyon, Lyon 1, Institut Mines-Telecom","34075","08/04/2022","MAQUETTES 2022-2025\\MEDECINE MASTER ingénierie de la santé parcours bioingénierie en santé.xlsm","-","non concerné","initiale, continue","oui","oui","non"]
["master","ingénierie de la santé","ingénierie de la neuromotricité","20160465","ENSM St-Etienne, EC Lyon, Lyon 1, Institut Mines-Telecom","34075","08/04/2022","MAQUETTES 2022-2025\\MEDECINE MASTER ingénierie de la santé parcours ingénierie de la neuromotricité.xlsm","-","non concerné","initiale, continue","oui","oui","non"]
["master","ingénierie de la santé","ingénierie prévention environnement de la santé","20160465","ENSM St-Etienne, EC Lyon, Lyon 1, Institut Mines-Telecom","34075","08/04/2022","MAQUETTES 2022-2025\\MEDECINE MASTER ingénierie de la santé parcours ingénierie prévention environnement de la santé.xlsm","-","non concerné","initiale, continue","oui","oui","non"]
["master","géomatique","géographies numériques","20160429","Lyon 2, ENS Lyon, Lyon 3","34852","08/04/2022","MAQUETTES 2022-2025\\SHS MASTER géomatique parcours géographie numériques.xlsm","-","non concerné","initiale, continue","non","non","oui"]
["master","gestion de l’environnement","prévention et gestion des altérations environnementales","20160427","ENSM St-Etienne, Institut Mines Telecom,Lyon 2, Lyon 3, ENS","34092","08/04/2022","MAQUETTES 2022-2025\\SHS MASTER gestion de l'environnement parcours prévention et gestion des altérations environnementales.xlsm","-","non concerné","initiale, continue","non","non","oui"]
["master","histoire","métier de l’historienne et de l'historien","20160430","Lyon 2, Lyon 3, ENS Lyon","31457","08/04/2022","MAQUETTES 2022-2025\\SHS MASTER histoire parcours métiers de l'historienne et de l’historien.xlsm","-","non concerné","initiale, continue","non","non","oui"]
["master","histoire, civilisations, patrimoine","management et médiation des patrimoines","20160432","-","34096","08/04/2022","MAQUETTES 2022-2025\\SHS MASTER histoire civilisations patrimoine parcours management et médiation des patrimoines.xlsm","-","non concerné","initiale","non","non","oui"]
["master","intervention et développement social","politiques sociales et développement territorial","20160435","Lyon 2","34132","08/04/2022","MAQUETTES 2022-2025\\SHS MASTER intervention et développement sociale parcours politiques sociales et développement territorial.xlsm","-","non concerné","initiale, continue","non","non","oui"]
["master","intervention et développement social","politiques sociales et développement territorial (FC)","20160435","-","34132","08/04/2022","MAQUETTES 2022-2025\\SHS MASTER intervention et développement social parcours politiques sociales et développement territorial (FC).xlsm","-","non concerné","continue","non","non","non"]
["master","sciences de l’éducation et de la formation","conception et réalisation de dispositifs et de projets, secteur enfance/jeunesse","20160453","Lyon 2","31849","08/04/2022","MAQUETTES 2022-2025\\SHS MASTER sciences de l'éducation et de la formation parcours conception et réalisation de dispositifs et de projets secteur enfance jeunesse.xlsm","-","non concerné","initiale","non","non","oui"]
["master","sciences de l’éducation et de la formation","expertise et recherche en éducation","20160453","Lyon 2","31849","08/04/2022","MAQUETTES 2022-2025\\SHS MASTER sciences de l'éducation et de la formation parcours expertise et recherche en éducation.xlsm","-","non concerné","initiale, continue","non","non","oui"]
["master","sociologie","formes et outils de l’enquête en sciences sociales","20160455","Lyon 2, ENS Lyon","31499","08/04/2022","MAQUETTES 2022-2025\\SHS MASTER sociologie parcours formes et outils de l’enquête en sciences sociales.xlsm","-","non concerné","initiale, continue","non","non","oui"]
["master","langues étrangères appliquées","relations commerciales internationales","20160398","Lyon 2, Lyon 3","34101","08/04/20022","MAQUETTES 2022-2025\\ALL MASTER langues étrangères appliquées parcours relations commerciales internationales.xlsm","-","non concerné","initiale","non","non","oui"]
["master","management et administration des entreprises","études et recherches en management","20160558","Lyon 3","35916","20/05/2016","MAQUETTES INITIALES\\MI_IAE_MASTER_management et administration des entreprises_recherche en management.xls","23/06/2017","MAQUETTES MODIFIEES\\MM_IAE_MASTER_management et administration des entreprises_recherche en management_03.06.2017.xlsx","initiale","non","non","oui"]
["master","électronique, énergie électrique, automatique","traitement de l’information et instrumentation pour l’ingénieur","20160461","EC Lyon, Lyon 1","34117","10/06/2022","MAQUETTES 2022-2025\\IUTR MASTER électronique énergie électrique automatique T3I.xlsm","-","non concerné","initiale","non","non","oui"]
["master","électronique, énergie électrique, automatique","traitement de l’information et instrumentation pour l’ingénieur - alternance","20160461","EC Lyon, Lyon 1","34117","10/06/2022","MAQUETTES 2022-2025\\IUTR MASTER électronique énergie électrique automatique T3I alternance.xlsm","-","non concerné","continue","oui","oui","non"]
["master","génie industriel","gestion et ingénierie des systèmes industriels et de santé (GISIS)","20160570","ENI St-Etienne,ENSM St-Etienne, EC Lyon, Institut Mines-Telecom, SIGMA Clermont, Université Clermont-Auvergne","34113","10/06/2022","MAQUETTES 2022-2025\\IUTR MASTER génie industriel GISIS.xlsm","-","non concerné","initiale","non","non","oui"]
["master","génie industriel","gestion et ingénierie des systèmes industriels et de santé (GISIS) - alternance","20160570","ENI St-Etienne,ENSM St-Etienne, EC Lyon, Institut Mines-Telecom, SIGMA Clermont, Université Clermont-Auvergne","34113","10/06/2022","MAQUETTES 2022-2025\\IUTR MASTER génie industriel GISIS alternance.xlsm","-","non concerné","continue","oui","oui","non"]
["master","génie industriel","méthodes avancées de génie industriel pour l'industrie du futur (MAGIF)","20160570","UCA, ECI, ENMSE","34113","10/06/2022","MAQUETTES 2022-2025\\IUTR MASTER génie industriel MAGIF.xlsm","-","non concerné","initiale","non","non","oui"]
["master","biologie moléculaire et cellulaire","leading international vaccinology education (LIVE)","20160437","Lyon 1","34272","15/09/2017","MAQUETTES INITIALES\\MI_MEDECINE_MASTER_biologie moléculaire et cellulaire_live_15.09.2017.xlsx","-","non concerné","initiale","non","non","oui"]
["master","santé publique","conseiller en génétique et génomique",null,"ECL - Lyon 1 - VetAgro Sup","34291",null,"A venir","-","non concerné"]
["master","santé publique","Methods in drug developement and evaluation (MDDE) Prevention, Health Promotion, Global Health",null,"ECL - Lyon 1 - VetAgro Sup","34291",null,"A venir","-","non concerné"]
["master","histoire, civilisations, patrimoine","dynamics of cultural landscapes and heritage management (DYCLAM)","20160432","ENTPE Lyon, ENSSIB Lyon, Lyon 2","34096","04/12/2015","MAQUETTES INITIALES\\MI_SHS_MASTER_DYCLAM","21/06/2019","MAQUETTES MODIFIEES\\MM_SHS_MASTER_DYCLAM_21.06.2019","initiale","non","non","oui"]
["master","information, communication","design de communication : innovation et médiation numérique","20160434","Lyon1, ENSSIB Lyon, Lyon2, Lyon 3, ENS Lyon","31496","-","maquette indisponible","18/06/2021","MAQUETTES MODIFIEES\\MM_TSE_MASTER_information communication_design de communication_18.06.2021.pdf","initiale, continue","oui","oui","oui"]
["master","OIVM - optique, image, vision, multimédia","ITXR, imaging technologies for extended reality","20160571","ENSM St-Etienne, EC Lyon, Institut Mines-Telecom","23345","18/06/2021","MAQUETTES INITIALES\\MI_TSE__MASTER_OIVM_master Imaging Technologies for extented reality_18.06.2021.pdf","-","non concerné","initiale","non","non","oui"]

{"sheet":"liste automatisée mentions","index":5,"n_rows":42,"n_cols":4,"rows_kept":42,"cut":false,"hidden":true,"merged":[]}
["PERIODE  D'ACCREDITATION","DIPLÔME","MENTION / INTITULE","STATUT  DE LA FORMATION POUR LES IA  DE L'ANNE EN COURS"]
["2022-2025","master","acoustique","ouverture prévue"]
["2022-2025","master","analyse et politique économique","ouverture prévue"]
["2016-2025","master","arts","ouvert"]
["2016-2025","master","biologie moléculaire et cellulaire","ouvert"]
["2016-2025","master","chimie et sciences des matériaux","ouvert"]
["2016-2025","master","comptabilité-contrôle-audit","ouvert"]
["2022-2025","master","contrôle de gestion et audit organisationnel","ouverture prévue"]
["2022-2025","master","design","ouverture prévue"]
["2022-2025","master","didactique des langues","ouverture prévue"]
["2022-2025","master","droit des affaires","ouverture prévue"]
["2022-2025","master","droit public","ouverture prévue"]
["2022-2025","master","électronique, énergie électrique, automatique","ouverture prévue"]
["2016-2025","master","électronique, énergie électrique, automatique (EEA CPI)","ouvert"]
["2022-2025","master","entrepreneuriat et management de projets","ouverture prévue"]
["2022-2025","master","finance","ouverture prévue"]
["2022-2025","master","génie industriel","ouverture prévue"]
["2016-2025","master","géomatique","ouvert"]
["2016-2025","master","gestion de l’environnement","ouvert"]
["2022-2025","master","histoire","ouverture prévue"]
["2016-2025","master","histoire, civilisations, patrimoine","ouvert"]
["2022-2025","master","information, communication","ouverture prévue"]
["2016-2025","master","informatique","ouvert"]
["2016-2025","master","ingénierie de la santé","ouvert"]
["2016-2025","master","intervention et développement social","ouvert"]
["2022-2025","master","justice, procès et procédures","ouverture prévue"]
["2016-2025","master","langues étrangères appliquées","ouvert"]
["2022-2025","master","langues, littératures et civilisations étrangères et régionales","ouverture prévue"]
["2022-2025","master","lettres","ouverture prévue"]
["2022-2025","master","management","ouverture prévue"]
["2016-2025","master","management et administration des entreprises","ouvert"]
["2022-2025","master","marketing, vente","ouverture prévue"]
["2016-2025","master","mathématiques appliquées, statistiques","ouvert"]
["2016-2025","master","monnaie, banque, finance, assurance","ouvert"]
["2016-2025","master","OIVM - optique, image, vision, multimédia","ouvert"]
["2022-2025","master","santé publique","N-OF- création mention et parcours"]
["2022-2025","master","science politique","ouverture prévue"]
["2022-2025","master","sciences de l’éducation et de la formation","ouverture prévue"]
["2022-2025","master","sciences du vivant","ouverture prévue"]
["2016-2025","master","sciences et techniques des activités physiques et sportives (STAPS) : entraînement et optimisation de la performance sportive (EOP)","ouvert"]
["2016-2025","master","sociologie","ouvert"]
["2016-2025","master","traduction et interprétation","ouvert"]

{"sheet":"liste automatisée parcours","index":6,"n_rows":86,"n_cols":4,"rows_kept":86,"cut":false,"hidden":true,"merged":[]}
["PERIODE  D'ACCREDITATION","DIPLÔME","PARCOURS","STATUT  DE LA FORMATION POUR LES IA  DE L'ANNE EN COURS"]
["2016-2025","master","-","ouvert"]
["2022-2025","master","acteurs publics","ouverture prévue"]
["2016-2025","master","administration et gestion de la musique","ouvert"]
["2016-2025","master","advanced imaging and material appearance (AIMA)","ouvert"]
["2022-2025","master","art dramatique","ouverture prévue"]
["2016-2025","master","banque et finance","ouvert"]
["2022-2025","master","bioacoustique","ouverture prévue"]
["2022-2025","master","bioingénierie en santé","ouverture prévue"]
["2022-2025","master","chargé d'affaires en banque : patrimoine et entreprises","ouverture prévue"]
["2022-2025","master","civil","ouverture prévue"]
["2016-2025","master","computational colour and spectral imaging (COSI 2)","ouvert"]
["2022-2025","master","conception et réalisation de dispositifs et de projets, secteur enfance/jeunesse","ouverture prévue"]
["2022-2025","master","conseil en développement territorial","ouverture prévue"]
["2022-2025","master","conseiller en génétique et génomique","N-OF- création mention et parcours"]
["2022-2025","master","conseils et ingénierie financière","ouverture prévue"]
["2016-2025","master","contrats publics","ouvert"]
["2022-2025","master","contrôle de gestion et systèmes d’information (CGSI)","ouverture prévue"]
["2016-2025","master","CPI","ouvert"]
["2022-2025","master","création contemporaine et nouvelles technologies","ouverture prévue"]
["2022-2025","master","création et recherche en arts plastiques","ouverture prévue"]
["2022-2025","master","cultures et interculturalité des médias dans les mondes espagnol et latino-américain","ouverture prévue"]
["2016-2025","master","cyber-physical social systems","ouvert"]
["2022-2025","master","data science & management de l'Innovation","ouverture prévue"]
["2016-2025","master","design de communication : innovation et médiation numérique","ouvert"]
["2016-2025","master","données et systèmes connectés","ouvert"]
["2022-2025","master","droit et affaires santé","ouverture prévue"]
["2022-2025","master","droit et entreprise, juriste d'affaires","ouverture prévue"]
["2022-2025","master","droits international européen et comparé (DIEC)","ouverture prévue"]
["2016-2025","master","dynamics of cultural landscapes and heritage management (DYCLAM)","ouvert"]
["2022-2025","master","écologie chimique","ouverture prévue"]
["2022-2025","master","écologie et éthologie","ouverture prévue"]
["2016-2025","master","édition d’art et livre d’artiste","ouvert"]
["2022-2025","master","enjeux sociaux et politiques de santé","ouverture prévue"]
["2022-2025","master","entrepreneuriat","ouverture prévue"]
["2016-2025","master","études anglophones","ouvert"]
["2016-2025","master","études et recherches en management","ouvert"]
["2016-2025","master","évaluation et ingénierie de la performance sportive (EIPS)","ouvert"]
["2022-2025","master","expertise et recherche en éducation","ouverture prévue"]
["2022-2025","master","FLE, ingénierie des formations en langues","ouverture prévue"]
["2016-2025","master","formes et outils de l’enquête en sciences sociales","ouvert"]
["2016-2025","master","géographies numériques","ouvert"]
["2022-2025","master","gestion et ingénierie des systèmes industriels et de santé (GISIS)","ouverture prévue"]
["2022-2025","master","gestion et ingénierie des systèmes industriels et de santé (GISIS) - alternance","ouverture prévue"]
["2022-2025","master","gouvernance et politiques urbaines alternatives (Altervilles)","ouverture prévue"]
["2022-2025","master","health performance science (HPS)","ouverture prévue"]
["2016-2025","master","ingénierie de la neuromotricité","ouvert"]
["2022-2025","master","ingénierie prévention environnement de la santé","ouverture prévue"]
["2016-2025","master","ITXR, imaging technologies for extended reality","ouvert"]
["2016-2025","master","leading international vaccinology education (LIVE)","ouvert"]
["2016-2025","master","lettres modernes (dont M2 Lettres et études culturelles en ligne)","ouvert"]
["2016-2025","master","machine learning data mining","ouvert"]
["2022-2025","master","management de projets","ouverture prévue"]
["2022-2025","master","management des organisations sanitaires et sociales (MOSS)","ouverture prévue"]
["2016-2025","master","management du commerce et de la distribution","ouvert"]
["2022-2025","master","management et médiation des patrimoines","ouverture prévue"]
["2022-2025","master","management général - double compétence","ouverture prévue"]
["2016-2025","master","management international","ouvert"]
["2022-2025","master","marketing et stratégie d'innovation","ouverture prévue"]
["2016-2025","master","mathématiques en action","ouvert"]
["2022-2025","master","méthodes avancées de génie industriel pour l'industrie du futur (MAGIF)","ouverture prévue"]
["2022-2025","master","Methods in drug developement and evaluation (MDDE) Prevention, Health Promotion, Global Health","N-OF- création mention et parcours"]
["2022-2025","master","métier de l’historienne et de l'historien","ouverture prévue"]
["2016-2025","master","métiers de la rédaction et de la traduction","ouvert"]
["2022-2025","master","métiers des institutions culturelles","ouverture prévue"]
["2022-2025","master","métiers et industrie d'art","ouverture prévue"]
["2016-2025","master","musique et musicologie","ouvert"]
["2022-2025","master","pénal","ouverture prévue"]
["2022-2025","master","photonics engineering","ouverture prévue"]
["2016-2025","master","photonics for security, reliability and safety (PSRS)","ouvert"]
["2016-2025","master","plasturgie","ouvert"]
["2022-2025","master","political engineering","ouverture prévue"]
["2022-2025","master","politiques européennes - voisinages de l'UE (AlterEurope)","ouverture prévue"]
["2016-2025","master","politiques sociales et développement territorial","ouvert"]
["2022-2025","master","politiques sociales et développement territorial (FC)","ouverture prévue"]
["2016-2025","master","prévention et gestion des altérations environnementales","ouvert"]
["2016-2025","master","prospective design","ouvert"]
["2016-2025","master","radiation and its Effects on micro electronics and photonics technologies (RADMEP)","ouverture prévue"]
["2016-2025","master","relations commerciales internationales","ouvert"]
["2022-2025","master","ressources humaines de l'entreprise et droit social","ouverture prévue"]
["2016-2025","master","science in imaging and light in extended reality (IMLEX)","ouvert"]
["2016-2025","master","sciences de l’art","ouvert"]
["2022-2025","master","sociodidactique, valorisation de la diversité linguistique et culturelle","ouverture prévue"]
["2022-2025","master","stratégies de communication, management et marketing digital","ouverture prévue"]
["2022-2025","master","traitement de l’information et instrumentation pour l’ingénieur","ouverture prévue"]
["2022-2025","master","traitement de l’information et instrumentation pour l’ingénieur - alternance","ouverture prévue"]

{"sheet":"LISTES","index":7,"n_rows":12,"n_cols":11,"rows_kept":12,"cut":false,"hidden":true,"merged":[]}
["Choisir la composante dans le menu déroulant","choisir dans la liste","Stage-Choisir la durée ici","Choisir le semestre dans le menu déroulant","EN ATTENTE VOTE CFVU","initiale","oui",1,"STAGE- choisir la durée ici","X","Choisir dans la liste"]
["ALL","Obligatoire","stage (heures)","Semestre 1","VALIDEE PAR CFVU","continue","non",2,"STAGE en heures",null,"Facultatif "]
["DEPT","Option","stage (semaines)","Semestre 2","REJETEE PAR CFVU","initiale, continue",null,null,"STAGE en semaines",null,"Obligatoire"]
["ECOLE D'ECONOMIE","Facultatif","stage (mois)","Semestre 3",null,null,null,null,"STAGE en mois",null,"Non rattrapable"]
["DROIT",null,null,"Semestre 4"]
["FST",null,null,"Semestre 5"]
["IAE",null,null,"Semestre 6"]
["IUT ROANNE",null,null,"Semestre 7"]
["IUT ST-ETIENNE",null,null,"Semestre 8"]
["MEDECINE",null,null,"Semestre 9"]
["SHS",null,null,"Semestre 10"]
["TELECOM ST-ETIENNE"]